{"text_format":"3","workbook":"xlsx","n_sheets":3,"sheets":["Dane planu","Elastyczny plan","Informacje"],"not_rendered":{"defined_names":5},"read":"whole","date_system":"1900"}

{"sheet":"Dane planu","index":0,"n_rows":13,"n_cols":7,"rows_kept":13,"merged":[[12,1,12,4]]}
["W tym arkuszu utwórz elastyczny plan, wprowadzając ważne punkty kontrolne i działania w tabeli Dane planu.\nW komórce B1 znajduje się tytuł tego arkusza. \nW arkuszu Informacje podano informacje dotyczące sposobu używania tego arkusza, w tym instrukcje dla czytników zawartości ekranu.\nAby uzyskać dodatkowe instrukcje, przechodź w dół kolumny A.","Dane osi czasu elastycznego planu"]
["Nagłówki tabeli znajdują się w komórkach od B2 do E2. Za pomocą filtrów nagłówków możesz sortować tabelę i znajdować konkretne elementy.\nElastyczny plan działa najlepiej, gdy tabela jest posortowana w kolejności rosnącej według priorytet, a następnie według punkt kontrolny lub działanie.\nPrzykładowe dane znajdują się w tabeli Dane planu w komórkach od B3 do E12. \nPo ukończeniu punkt kontrolny lub działanie zaktualizuj odpowiednie pole Wynik w celu odzwierciedlenia wyników w arkuszu Elastyczny plan. Aby wyróżnić punkty kontrolne, które nie mają w pływu, wprowadź „Bez zmian”.\nPrzejdź do komórki A13, aby uzyskać dalsze instrukcje.\n","Cel","Punkt kontrolny lub działanie","Priorytet","Wynik",null,"<-- sortuj tabelę według priorytet i punkt kontrolny lub działanie w kolejności rosnącej"]
[null,"Bieżące","Działanie 1\nPrzygotowanie prototypu","1 — Wysoki",null,null,"<-- dodaj wynik dla każdego ukończonego punktu kontrolnego. Aby wyróżnić punkty kontrolne, które nie mają w pływu, wprowadź „Bez zmian”."]
[null,"Krótkoterminowe","Działanie 2\nPrototyp pokazowy","1 — Wysoki"]
[null,"Bieżące","Działanie 6","1 — Wysoki"]
[null,"Odległe","Działanie 7\nOutsourcing opracowania implementacji etapu pierwszego","1 — Wysoki"]
[null,"Ukończone","Działanie 9\nZatwierdzenie etapu pierwszego","1 — Wysoki","Spadek o 10%"]
[null,"Odległe","Działanie 10","2 — Średni"]
[null,"Krótkoterminowe","Działanie 8","2 — Średni"]
[null,"Ukończone","Działanie 3","3 — Niski","Bez zmian"]
[null,"Odległe","Ćwiczenie 4","3 — Niski"]
[null,"Bieżące","Działanie 5","3 — Niski"]
["Dodaj nowe elementy, wstawiając nowe wiersze w tabeli powyżej tego wiersza.\nJest to ostatnia instrukcja w tym arkuszu.","Dodaj nowe elementy, wstawiając nowe wiersze powyżej tego wiersza"]

{"sheet":"Elastyczny plan","index":1,"n_rows":100,"n_cols":8,"rows_kept":100}
["W tym arkuszu znajduje się elastyczny plan odzwierciedlający punkty kontrolne i działania z arkusza Dane planu. \nTytuł znajduje się w komórce B1. \nWyniki zawierające frazę „Bez zmian” są wyróżniane kolorem jasnopomarańczowym, rgb(255, 230, 210).\nUkończone punkty kontrolne lub działania są wyróżnione kolorem jasnozielonym, rgb(237, 251, 219).","Elastyczny plan"]
["Nagłówki wykresu są umieszczone w komórkach B2, D2, F2 i H2. Oto one: Ukończone, Bieżące, Krótkoterminowe, Odległe. Zmodyfikuj te nagłówki, aby zmienić wartości wyboru celów w tabeli Dane planu w arkuszu Dane planu.\nKomórki od B3 do H20 zawierają punkty kontrolne i działania dla nagłówków w tym wierszu. \nPunkty kontrolne i działania są tworzone w arkuszu Dane planu.\nNIE modyfikuj ani nie usuwaj wpisów w tym arkuszu. Aby zaktualizować zawartość w tym arkuszu, zaktualizuj tabelę Dane planu w arkuszu Dane planu.\nJest to ostatnia instrukcja w tym arkuszu.","Ukończone",null,"Bieżące",null,"Krótkoterminowe",null,"Odległe"]
[null,{"$f":"IFERROR(INDEX(Działanie,SMALL(IF(Cel=$B$2,ROW(Działanie)-MIN(ROW(Działanie))+1),ROWS($B$3:B3)))&\" \"&CHAR(10)&(INDEX(Wynik,SMALL(IF(Cel=$B$2,ROW(Wynik)-MIN(ROW(Wynik))+1),ROWS($B$3:B3))))&CHAR(10),\"\")","v":"Działanie 9\nZatwierdzenie etapu pierwszego \nSpadek o 10%\n"},null,{"$f":"IFERROR(INDEX(Działanie,SMALL(IF(Cel=$D$2,ROW(Działanie)-MIN(ROW(Działanie))+1),ROWS($B$3:B3)))&CHAR(10),\"\")","v":"Działanie 1\nPrzygotowanie prototypu\n"},null,{"$f":"IFERROR(INDEX(Działanie,SMALL(IF(Cel=$F$2,ROW(Działanie)-MIN(ROW(Działanie))+1),ROWS($B$3:B3)))&CHAR(10),\"\")","v":"Działanie 2\nPrototyp pokazowy\n"},null,{"$f":"IFERROR(INDEX(Działanie,SMALL(IF(Cel=$H$2,ROW(Działanie)-MIN(ROW(Działanie))+1),ROWS($B$3:B3)))&CHAR(10),\"\")","v":"Działanie 7\nOutsourcing opracowania implementacji etapu pierwszego\n"}]
[null,{"$f":"IFERROR(INDEX(Działanie,SMALL(IF(Cel=$B$2,ROW(Działanie)-MIN(ROW(Działanie))+1),ROWS($B$3:B4)))&\" \"&CHAR(10)&(INDEX(Wynik,SMALL(IF(Cel=$B$2,ROW(Wynik)-MIN(ROW(Wynik))+1),ROWS($B$3:B4))))&CHAR(10),\"\")","v":"Działanie 3 \nBez zmian\n"},null,{"$f":"IFERROR(INDEX(Działanie,SMALL(IF(Cel=$D$2,ROW(Działanie)-MIN(ROW(Działanie))+1),ROWS($B$3:B4)))&CHAR(10),\"\")","v":"Działanie 6\n"},null,{"$f":"IFERROR(INDEX(Działanie,SMALL(IF(Cel=$F$2,ROW(Działanie)-MIN(ROW(Działanie))+1),ROWS($B$3:B4)))&CHAR(10),\"\")","v":"Działanie 8\n"},null,{"$f":"IFERROR(INDEX(Działanie,SMALL(IF(Cel=$H$2,ROW(Działanie)-MIN(ROW(Działanie))+1),ROWS($B$3:B4)))&CHAR(10),\"\")","v":"Działanie 10\n"}]
[null,{"$f":"IFERROR(INDEX(Działanie,SMALL(IF(Cel=$B$2,ROW(Działanie)-MIN(ROW(Działanie))+1),ROWS($B$3:B5)))&\" \"&CHAR(10)&(INDEX(Wynik,SMALL(IF(Cel=$B$2,ROW(Wynik)-MIN(ROW(Wynik))+1),ROWS($B$3:B5))))&CHAR(10),\"\")","v":""},null,{"$f":"IFERROR(INDEX(Działanie,SMALL(IF(Cel=$D$2,ROW(Działanie)-MIN(ROW(Działanie))+1),ROWS($B$3:B5)))&CHAR(10),\"\")","v":"Działanie 5\n"},null,{"$f":"IFERROR(INDEX(Działanie,SMALL(IF(Cel=$F$2,ROW(Działanie)-MIN(ROW(Działanie))+1),ROWS($B$3:B5)))&CHAR(10),\"\")","v":""},null,{"$f":"IFERROR(INDEX(Działanie,SMALL(IF(Cel=$H$2,ROW(Działanie)-MIN(ROW(Działanie))+1),ROWS($B$3:B5)))&CHAR(10),\"\")","v":"Ćwiczenie 4\n"}]
[null,{"$f":"IFERROR(INDEX(Działanie,SMALL(IF(Cel=$B$2,ROW(Działanie)-MIN(ROW(Działanie))+1),ROWS($B$3:B6)))&\" \"&CHAR(10)&(INDEX(Wynik,SMALL(IF(Cel=$B$2,ROW(Wynik)-MIN(ROW(Wynik))+1),ROWS($B$3:B6))))&CHAR(10),\"\")","v":""},null,{"$f":"IFERROR(INDEX(Działanie,SMALL(IF(Cel=$D$2,ROW(Działanie)-MIN(ROW(Działanie))+1),ROWS($B$3:B6)))&CHAR(10),\"\")","v":""},null,{"$f":"IFERROR(INDEX(Działanie,SMALL(IF(Cel=$F$2,ROW(Działanie)-MIN(ROW(Działanie))+1),ROWS($B$3:B6)))&CHAR(10),\"\")","v":""},null,{"$f":"IFERROR(INDEX(Działanie,SMALL(IF(Cel=$H$2,ROW(Działanie)-MIN(ROW(Działanie))+1),ROWS($B$3:B6)))&CHAR(10),\"\")","v":""}]
[null,{"$f":"IFERROR(INDEX(Działanie,SMALL(IF(Cel=$B$2,ROW(Działanie)-MIN(ROW(Działanie))+1),ROWS($B$3:B7)))&\" \"&CHAR(10)&(INDEX(Wynik,SMALL(IF(Cel=$B$2,ROW(Wynik)-MIN(ROW(Wynik))+1),ROWS($B$3:B7))))&CHAR(10),\"\")","v":""},null,{"$f":"IFERROR(INDEX(Działanie,SMALL(IF(Cel=$D$2,ROW(Działanie)-MIN(ROW(Działanie))+1),ROWS($B$3:B7)))&CHAR(10),\"\")","v":""},null,{"$f":"IFERROR(INDEX(Działanie,SMALL(IF(Cel=$F$2,ROW(Działanie)-MIN(ROW(Działanie))+1),ROWS($B$3:B7)))&CHAR(10),\"\")","v":""},null,{"$f":"IFERROR(INDEX(Działanie,SMALL(IF(Cel=$H$2,ROW(Działanie)-MIN(ROW(Działanie))+1),ROWS($B$3:B7)))&CHAR(10),\"\")","v":""}]
[null,{"$f":"IFERROR(INDEX(Działanie,SMALL(IF(Cel=$B$2,ROW(Działanie)-MIN(ROW(Działanie))+1),ROWS($B$3:B8)))&\" \"&CHAR(10)&(INDEX(Wynik,SMALL(IF(Cel=$B$2,ROW(Wynik)-MIN(ROW(Wynik))+1),ROWS($B$3:B8))))&CHAR(10),\"\")","v":""},null,{"$f":"IFERROR(INDEX(Działanie,SMALL(IF(Cel=$D$2,ROW(Działanie)-MIN(ROW(Działanie))+1),ROWS($B$3:B8)))&CHAR(10),\"\")","v":""},null,{"$f":"IFERROR(INDEX(Działanie,SMALL(IF(Cel=$F$2,ROW(Działanie)-MIN(ROW(Działanie))+1),ROWS($B$3:B8)))&CHAR(10),\"\")","v":""},null,{"$f":"IFERROR(INDEX(Działanie,SMALL(IF(Cel=$H$2,ROW(Działanie)-MIN(ROW(Działanie))+1),ROWS($B$3:B8)))&CHAR(10),\"\")","v":""}]
[null,{"$f":"IFERROR(INDEX(Działanie,SMALL(IF(Cel=$B$2,ROW(Działanie)-MIN(ROW(Działanie))+1),ROWS($B$3:B9)))&\" \"&CHAR(10)&(INDEX(Wynik,SMALL(IF(Cel=$B$2,ROW(Wynik)-MIN(ROW(Wynik))+1),ROWS($B$3:B9))))&CHAR(10),\"\")","v":""},null,{"$f":"IFERROR(INDEX(Działanie,SMALL(IF(Cel=$D$2,ROW(Działanie)-MIN(ROW(Działanie))+1),ROWS($B$3:B9)))&CHAR(10),\"\")","v":""},null,{"$f":"IFERROR(INDEX(Działanie,SMALL(IF(Cel=$F$2,ROW(Działanie)-MIN(ROW(Działanie))+1),ROWS($B$3:B9)))&CHAR(10),\"\")","v":""},null,{"$f":"IFERROR(INDEX(Działanie,SMALL(IF(Cel=$H$2,ROW(Działanie)-MIN(ROW(Działanie))+1),ROWS($B$3:B9)))&CHAR(10),\"\")","v":""}]
[null,{"$f":"IFERROR(INDEX(Działanie,SMALL(IF(Cel=$B$2,ROW(Działanie)-MIN(ROW(Działanie))+1),ROWS($B$3:B10)))&\" \"&CHAR(10)&(INDEX(Wynik,SMALL(IF(Cel=$B$2,ROW(Wynik)-MIN(ROW(Wynik))+1),ROWS($B$3:B10))))&CHAR(10),\"\")","v":""},null,{"$f":"IFERROR(INDEX(Działanie,SMALL(IF(Cel=$D$2,ROW(Działanie)-MIN(ROW(Działanie))+1),ROWS($B$3:B10)))&CHAR(10),\"\")","v":""},null,{"$f":"IFERROR(INDEX(Działanie,SMALL(IF(Cel=$F$2,ROW(Działanie)-MIN(ROW(Działanie))+1),ROWS($B$3:B10)))&CHAR(10),\"\")","v":""},null,{"$f":"IFERROR(INDEX(Działanie,SMALL(IF(Cel=$H$2,ROW(Działanie)-MIN(ROW(Działanie))+1),ROWS($B$3:B10)))&CHAR(10),\"\")","v":""}]
[null,{"$f":"IFERROR(INDEX(Działanie,SMALL(IF(Cel=$B$2,ROW(Działanie)-MIN(ROW(Działanie))+1),ROWS($B$3:B11)))&\" \"&CHAR(10)&(INDEX(Wynik,SMALL(IF(Cel=$B$2,ROW(Wynik)-MIN(ROW(Wynik))+1),ROWS($B$3:B11))))&CHAR(10),\"\")","v":""},null,{"$f":"IFERROR(INDEX(Działanie,SMALL(IF(Cel=$D$2,ROW(Działanie)-MIN(ROW(Działanie))+1),ROWS($B$3:B11)))&CHAR(10),\"\")","v":""},null,{"$f":"IFERROR(INDEX(Działanie,SMALL(IF(Cel=$F$2,ROW(Działanie)-MIN(ROW(Działanie))+1),ROWS($B$3:B11)))&CHAR(10),\"\")","v":""},null,{"$f":"IFERROR(INDEX(Działanie,SMALL(IF(Cel=$H$2,ROW(Działanie)-MIN(ROW(Działanie))+1),ROWS($B$3:B11)))&CHAR(10),\"\")","v":""}]
[null,{"$f":"IFERROR(INDEX(Działanie,SMALL(IF(Cel=$B$2,ROW(Działanie)-MIN(ROW(Działanie))+1),ROWS($B$3:B12)))&\" \"&CHAR(10)&(INDEX(Wynik,SMALL(IF(Cel=$B$2,ROW(Wynik)-MIN(ROW(Wynik))+1),ROWS($B$3:B12))))&CHAR(10),\"\")","v":""},null,{"$f":"IFERROR(INDEX(Działanie,SMALL(IF(Cel=$D$2,ROW(Działanie)-MIN(ROW(Działanie))+1),ROWS($B$3:B12)))&CHAR(10),\"\")","v":""},null,{"$f":"IFERROR(INDEX(Działanie,SMALL(IF(Cel=$F$2,ROW(Działanie)-MIN(ROW(Działanie))+1),ROWS($B$3:B12)))&CHAR(10),\"\")","v":""},null,{"$f":"IFERROR(INDEX(Działanie,SMALL(IF(Cel=$H$2,ROW(Działanie)-MIN(ROW(Działanie))+1),ROWS($B$3:B12)))&CHAR(10),\"\")","v":""}]
[null,{"$f":"IFERROR(INDEX(Działanie,SMALL(IF(Cel=$B$2,ROW(Działanie)-MIN(ROW(Działanie))+1),ROWS($B$3:B13)))&\" \"&CHAR(10)&(INDEX(Wynik,SMALL(IF(Cel=$B$2,ROW(Wynik)-MIN(ROW(Wynik))+1),ROWS($B$3:B13))))&CHAR(10),\"\")","v":""},null,{"$f":"IFERROR(INDEX(Działanie,SMALL(IF(Cel=$D$2,ROW(Działanie)-MIN(ROW(Działanie))+1),ROWS($B$3:B13)))&CHAR(10),\"\")","v":""},null,{"$f":"IFERROR(INDEX(Działanie,SMALL(IF(Cel=$F$2,ROW(Działanie)-MIN(ROW(Działanie))+1),ROWS($B$3:B13)))&CHAR(10),\"\")","v":""},null,{"$f":"IFERROR(INDEX(Działanie,SMALL(IF(Cel=$H$2,ROW(Działanie)-MIN(ROW(Działanie))+1),ROWS($B$3:B13)))&CHAR(10),\"\")","v":""}]
[null,{"$f":"IFERROR(INDEX(Działanie,SMALL(IF(Cel=$B$2,ROW(Działanie)-MIN(ROW(Działanie))+1),ROWS($B$3:B14)))&\" \"&CHAR(10)&(INDEX(Wynik,SMALL(IF(Cel=$B$2,ROW(Wynik)-MIN(ROW(Wynik))+1),ROWS($B$3:B14))))&CHAR(10),\"\")","v":""},null,{"$f":"IFERROR(INDEX(Działanie,SMALL(IF(Cel=$D$2,ROW(Działanie)-MIN(ROW(Działanie))+1),ROWS($B$3:B14)))&CHAR(10),\"\")","v":""},null,{"$f":"IFERROR(INDEX(Działanie,SMALL(IF(Cel=$F$2,ROW(Działanie)-MIN(ROW(Działanie))+1),ROWS($B$3:B14)))&CHAR(10),\"\")","v":""},null,{"$f":"IFERROR(INDEX(Działanie,SMALL(IF(Cel=$H$2,ROW(Działanie)-MIN(ROW(Działanie))+1),ROWS($B$3:B14)))&CHAR(10),\"\")","v":""}]
[null,{"$f":"IFERROR(INDEX(Działanie,SMALL(IF(Cel=$B$2,ROW(Działanie)-MIN(ROW(Działanie))+1),ROWS($B$3:B15)))&\" \"&CHAR(10)&(INDEX(Wynik,SMALL(IF(Cel=$B$2,ROW(Wynik)-MIN(ROW(Wynik))+1),ROWS($B$3:B15))))&CHAR(10),\"\")","v":""},null,{"$f":"IFERROR(INDEX(Działanie,SMALL(IF(Cel=$D$2,ROW(Działanie)-MIN(ROW(Działanie))+1),ROWS($B$3:B15)))&CHAR(10),\"\")","v":""},null,{"$f":"IFERROR(INDEX(Działanie,SMALL(IF(Cel=$F$2,ROW(Działanie)-MIN(ROW(Działanie))+1),ROWS($B$3:B15)))&CHAR(10),\"\")","v":""},null,{"$f":"IFERROR(INDEX(Działanie,SMALL(IF(Cel=$H$2,ROW(Działanie)-MIN(ROW(Działanie))+1),ROWS($B$3:B15)))&CHAR(10),\"\")","v":""}]
[null,{"$f":"IFERROR(INDEX(Działanie,SMALL(IF(Cel=$B$2,ROW(Działanie)-MIN(ROW(Działanie))+1),ROWS($B$3:B16)))&\" \"&CHAR(10)&(INDEX(Wynik,SMALL(IF(Cel=$B$2,ROW(Wynik)-MIN(ROW(Wynik))+1),ROWS($B$3:B16))))&CHAR(10),\"\")","v":""},null,{"$f":"IFERROR(INDEX(Działanie,SMALL(IF(Cel=$D$2,ROW(Działanie)-MIN(ROW(Działanie))+1),ROWS($B$3:B16)))&CHAR(10),\"\")","v":""},null,{"$f":"IFERROR(INDEX(Działanie,SMALL(IF(Cel=$F$2,ROW(Działanie)-MIN(ROW(Działanie))+1),ROWS($B$3:B16)))&CHAR(10),\"\")","v":""},null,{"$f":"IFERROR(INDEX(Działanie,SMALL(IF(Cel=$H$2,ROW(Działanie)-MIN(ROW(Działanie))+1),ROWS($B$3:B16)))&CHAR(10),\"\")","v":""}]
[null,{"$f":"IFERROR(INDEX(Działanie,SMALL(IF(Cel=$B$2,ROW(Działanie)-MIN(ROW(Działanie))+1),ROWS($B$3:B17)))&\" \"&CHAR(10)&(INDEX(Wynik,SMALL(IF(Cel=$B$2,ROW(Wynik)-MIN(ROW(Wynik))+1),ROWS($B$3:B17))))&CHAR(10),\"\")","v":""},null,{"$f":"IFERROR(INDEX(Działanie,SMALL(IF(Cel=$D$2,ROW(Działanie)-MIN(ROW(Działanie))+1),ROWS($B$3:B17)))&CHAR(10),\"\")","v":""},null,{"$f":"IFERROR(INDEX(Działanie,SMALL(IF(Cel=$F$2,ROW(Działanie)-MIN(ROW(Działanie))+1),ROWS($B$3:B17)))&CHAR(10),\"\")","v":""},null,{"$f":"IFERROR(INDEX(Działanie,SMALL(IF(Cel=$H$2,ROW(Działanie)-MIN(ROW(Działanie))+1),ROWS($B$3:B17)))&CHAR(10),\"\")","v":""}]
[null,{"$f":"IFERROR(INDEX(Działanie,SMALL(IF(Cel=$B$2,ROW(Działanie)-MIN(ROW(Działanie))+1),ROWS($B$3:B18)))&\" \"&CHAR(10)&(INDEX(Wynik,SMALL(IF(Cel=$B$2,ROW(Wynik)-MIN(ROW(Wynik))+1),ROWS($B$3:B18))))&CHAR(10),\"\")","v":""},null,{"$f":"IFERROR(INDEX(Działanie,SMALL(IF(Cel=$D$2,ROW(Działanie)-MIN(ROW(Działanie))+1),ROWS($B$3:B18)))&CHAR(10),\"\")","v":""},null,{"$f":"IFERROR(INDEX(Działanie,SMALL(IF(Cel=$F$2,ROW(Działanie)-MIN(ROW(Działanie))+1),ROWS($B$3:B18)))&CHAR(10),\"\")","v":""},null,{"$f":"IFERROR(INDEX(Działanie,SMALL(IF(Cel=$H$2,ROW(Działanie)-MIN(ROW(Działanie))+1),ROWS($B$3:B18)))&CHAR(10),\"\")","v":""}]
[null,{"$f":"IFERROR(INDEX(Działanie,SMALL(IF(Cel=$B$2,ROW(Działanie)-MIN(ROW(Działanie))+1),ROWS($B$3:B19)))&\" \"&CHAR(10)&(INDEX(Wynik,SMALL(IF(Cel=$B$2,ROW(Wynik)-MIN(ROW(Wynik))+1),ROWS($B$3:B19))))&CHAR(10),\"\")","v":""},null,{"$f":"IFERROR(INDEX(Działanie,SMALL(IF(Cel=$D$2,ROW(Działanie)-MIN(ROW(Działanie))+1),ROWS($B$3:B19)))&CHAR(10),\"\")","v":""},null,{"$f":"IFERROR(INDEX(Działanie,SMALL(IF(Cel=$F$2,ROW(Działanie)-MIN(ROW(Działanie))+1),ROWS($B$3:B19)))&CHAR(10),\"\")","v":""},null,{"$f":"IFERROR(INDEX(Działanie,SMALL(IF(Cel=$H$2,ROW(Działanie)-MIN(ROW(Działanie))+1),ROWS($B$3:B19)))&CHAR(10),\"\")","v":""}]
[null,{"$f":"IFERROR(INDEX(Działanie,SMALL(IF(Cel=$B$2,ROW(Działanie)-MIN(ROW(Działanie))+1),ROWS($B$3:B20)))&\" \"&CHAR(10)&(INDEX(Wynik,SMALL(IF(Cel=$B$2,ROW(Wynik)-MIN(ROW(Wynik))+1),ROWS($B$3:B20))))&CHAR(10),\"\")","v":""},null,{"$f":"IFERROR(INDEX(Działanie,SMALL(IF(Cel=$D$2,ROW(Działanie)-MIN(ROW(Działanie))+1),ROWS($B$3:B20)))&CHAR(10),\"\")","v":""},null,{"$f":"IFERROR(INDEX(Działanie,SMALL(IF(Cel=$F$2,ROW(Działanie)-MIN(ROW(Działanie))+1),ROWS($B$3:B20)))&CHAR(10),\"\")","v":""},null,{"$f":"IFERROR(INDEX(Działanie,SMALL(IF(Cel=$H$2,ROW(Działanie)-MIN(ROW(Działanie))+1),ROWS($B$3:B20)))&CHAR(10),\"\")","v":""}]
[null,{"$f":"IFERROR(INDEX(Działanie,SMALL(IF(Cel=$B$2,ROW(Działanie)-MIN(ROW(Działanie))+1),ROWS($B$3:B21)))&\" \"&CHAR(10)&(INDEX(Wynik,SMALL(IF(Cel=$B$2,ROW(Wynik)-MIN(ROW(Wynik))+1),ROWS($B$3:B21))))&CHAR(10),\"\")","v":""},null,{"$f":"IFERROR(INDEX(Działanie,SMALL(IF(Cel=$D$2,ROW(Działanie)-MIN(ROW(Działanie))+1),ROWS($B$3:B21)))&CHAR(10),\"\")","v":""},null,{"$f":"IFERROR(INDEX(Działanie,SMALL(IF(Cel=$F$2,ROW(Działanie)-MIN(ROW(Działanie))+1),ROWS($B$3:B21)))&CHAR(10),\"\")","v":""},null,{"$f":"IFERROR(INDEX(Działanie,SMALL(IF(Cel=$H$2,ROW(Działanie)-MIN(ROW(Działanie))+1),ROWS($B$3:B21)))&CHAR(10),\"\")","v":""}]
[null,{"$f":"IFERROR(INDEX(Działanie,SMALL(IF(Cel=$B$2,ROW(Działanie)-MIN(ROW(Działanie))+1),ROWS($B$3:B22)))&\" \"&CHAR(10)&(INDEX(Wynik,SMALL(IF(Cel=$B$2,ROW(Wynik)-MIN(ROW(Wynik))+1),ROWS($B$3:B22))))&CHAR(10),\"\")","v":""},null,{"$f":"IFERROR(INDEX(Działanie,SMALL(IF(Cel=$D$2,ROW(Działanie)-MIN(ROW(Działanie))+1),ROWS($B$3:B22)))&CHAR(10),\"\")","v":""},null,{"$f":"IFERROR(INDEX(Działanie,SMALL(IF(Cel=$F$2,ROW(Działanie)-MIN(ROW(Działanie))+1),ROWS($B$3:B22)))&CHAR(10),\"\")","v":""},null,{"$f":"IFERROR(INDEX(Działanie,SMALL(IF(Cel=$H$2,ROW(Działanie)-MIN(ROW(Działanie))+1),ROWS($B$3:B22)))&CHAR(10),\"\")","v":""}]
[null,{"$f":"IFERROR(INDEX(Działanie,SMALL(IF(Cel=$B$2,ROW(Działanie)-MIN(ROW(Działanie))+1),ROWS($B$3:B23)))&\" \"&CHAR(10)&(INDEX(Wynik,SMALL(IF(Cel=$B$2,ROW(Wynik)-MIN(ROW(Wynik))+1),ROWS($B$3:B23))))&CHAR(10),\"\")","v":""},null,{"$f":"IFERROR(INDEX(Działanie,SMALL(IF(Cel=$D$2,ROW(Działanie)-MIN(ROW(Działanie))+1),ROWS($B$3:B23)))&CHAR(10),\"\")","v":""},null,{"$f":"IFERROR(INDEX(Działanie,SMALL(IF(Cel=$F$2,ROW(Działanie)-MIN(ROW(Działanie))+1),ROWS($B$3:B23)))&CHAR(10),\"\")","v":""},null,{"$f":"IFERROR(INDEX(Działanie,SMALL(IF(Cel=$H$2,ROW(Działanie)-MIN(ROW(Działanie))+1),ROWS($B$3:B23)))&CHAR(10),\"\")","v":""}]
[null,{"$f":"IFERROR(INDEX(Działanie,SMALL(IF(Cel=$B$2,ROW(Działanie)-MIN(ROW(Działanie))+1),ROWS($B$3:B24)))&\" \"&CHAR(10)&(INDEX(Wynik,SMALL(IF(Cel=$B$2,ROW(Wynik)-MIN(ROW(Wynik))+1),ROWS($B$3:B24))))&CHAR(10),\"\")","v":""},null,{"$f":"IFERROR(INDEX(Działanie,SMALL(IF(Cel=$D$2,ROW(Działanie)-MIN(ROW(Działanie))+1),ROWS($B$3:B24)))&CHAR(10),\"\")","v":""},null,{"$f":"IFERROR(INDEX(Działanie,SMALL(IF(Cel=$F$2,ROW(Działanie)-MIN(ROW(Działanie))+1),ROWS($B$3:B24)))&CHAR(10),\"\")","v":""},null,{"$f":"IFERROR(INDEX(Działanie,SMALL(IF(Cel=$H$2,ROW(Działanie)-MIN(ROW(Działanie))+1),ROWS($B$3:B24)))&CHAR(10),\"\")","v":""}]
[null,{"$f":"IFERROR(INDEX(Działanie,SMALL(IF(Cel=$B$2,ROW(Działanie)-MIN(ROW(Działanie))+1),ROWS($B$3:B25)))&\" \"&CHAR(10)&(INDEX(Wynik,SMALL(IF(Cel=$B$2,ROW(Wynik)-MIN(ROW(Wynik))+1),ROWS($B$3:B25))))&CHAR(10),\"\")","v":""},null,{"$f":"IFERROR(INDEX(Działanie,SMALL(IF(Cel=$D$2,ROW(Działanie)-MIN(ROW(Działanie))+1),ROWS($B$3:B25)))&CHAR(10),\"\")","v":""},null,{"$f":"IFERROR(INDEX(Działanie,SMALL(IF(Cel=$F$2,ROW(Działanie)-MIN(ROW(Działanie))+1),ROWS($B$3:B25)))&CHAR(10),\"\")","v":""},null,{"$f":"IFERROR(INDEX(Działanie,SMALL(IF(Cel=$H$2,ROW(Działanie)-MIN(ROW(Działanie))+1),ROWS($B$3:B25)))&CHAR(10),\"\")","v":""}]
[null,{"$f":"IFERROR(INDEX(Działanie,SMALL(IF(Cel=$B$2,ROW(Działanie)-MIN(ROW(Działanie))+1),ROWS($B$3:B26)))&\" \"&CHAR(10)&(INDEX(Wynik,SMALL(IF(Cel=$B$2,ROW(Wynik)-MIN(ROW(Wynik))+1),ROWS($B$3:B26))))&CHAR(10),\"\")","v":""},null,{"$f":"IFERROR(INDEX(Działanie,SMALL(IF(Cel=$D$2,ROW(Działanie)-MIN(ROW(Działanie))+1),ROWS($B$3:B26)))&CHAR(10),\"\")","v":""},null,{"$f":"IFERROR(INDEX(Działanie,SMALL(IF(Cel=$F$2,ROW(Działanie)-MIN(ROW(Działanie))+1),ROWS($B$3:B26)))&CHAR(10),\"\")","v":""},null,{"$f":"IFERROR(INDEX(Działanie,SMALL(IF(Cel=$H$2,ROW(Działanie)-MIN(ROW(Działanie))+1),ROWS($B$3:B26)))&CHAR(10),\"\")","v":""}]
[null,{"$f":"IFERROR(INDEX(Działanie,SMALL(IF(Cel=$B$2,ROW(Działanie)-MIN(ROW(Działanie))+1),ROWS($B$3:B27)))&\" \"&CHAR(10)&(INDEX(Wynik,SMALL(IF(Cel=$B$2,ROW(Wynik)-MIN(ROW(Wynik))+1),ROWS($B$3:B27))))&CHAR(10),\"\")","v":""},null,{"$f":"IFERROR(INDEX(Działanie,SMALL(IF(Cel=$D$2,ROW(Działanie)-MIN(ROW(Działanie))+1),ROWS($B$3:B27)))&CHAR(10),\"\")","v":""},null,{"$f":"IFERROR(INDEX(Działanie,SMALL(IF(Cel=$F$2,ROW(Działanie)-MIN(ROW(Działanie))+1),ROWS($B$3:B27)))&CHAR(10),\"\")","v":""},null,{"$f":"IFERROR(INDEX(Działanie,SMALL(IF(Cel=$H$2,ROW(Działanie)-MIN(ROW(Działanie))+1),ROWS($B$3:B27)))&CHAR(10),\"\")","v":""}]
[null,{"$f":"IFERROR(INDEX(Działanie,SMALL(IF(Cel=$B$2,ROW(Działanie)-MIN(ROW(Działanie))+1),ROWS($B$3:B28)))&\" \"&CHAR(10)&(INDEX(Wynik,SMALL(IF(Cel=$B$2,ROW(Wynik)-MIN(ROW(Wynik))+1),ROWS($B$3:B28))))&CHAR(10),\"\")","v":""},null,{"$f":"IFERROR(INDEX(Działanie,SMALL(IF(Cel=$D$2,ROW(Działanie)-MIN(ROW(Działanie))+1),ROWS($B$3:B28)))&CHAR(10),\"\")","v":""},null,{"$f":"IFERROR(INDEX(Działanie,SMALL(IF(Cel=$F$2,ROW(Działanie)-MIN(ROW(Działanie))+1),ROWS($B$3:B28)))&CHAR(10),\"\")","v":""},null,{"$f":"IFERROR(INDEX(Działanie,SMALL(IF(Cel=$H$2,ROW(Działanie)-MIN(ROW(Działanie))+1),ROWS($B$3:B28)))&CHAR(10),\"\")","v":""}]
[null,{"$f":"IFERROR(INDEX(Działanie,SMALL(IF(Cel=$B$2,ROW(Działanie)-MIN(ROW(Działanie))+1),ROWS($B$3:B29)))&\" \"&CHAR(10)&(INDEX(Wynik,SMALL(IF(Cel=$B$2,ROW(Wynik)-MIN(ROW(Wynik))+1),ROWS($B$3:B29))))&CHAR(10),\"\")","v":""},null,{"$f":"IFERROR(INDEX(Działanie,SMALL(IF(Cel=$D$2,ROW(Działanie)-MIN(ROW(Działanie))+1),ROWS($B$3:B29)))&CHAR(10),\"\")","v":""},null,{"$f":"IFERROR(INDEX(Działanie,SMALL(IF(Cel=$F$2,ROW(Działanie)-MIN(ROW(Działanie))+1),ROWS($B$3:B29)))&CHAR(10),\"\")","v":""},null,{"$f":"IFERROR(INDEX(Działanie,SMALL(IF(Cel=$H$2,ROW(Działanie)-MIN(ROW(Działanie))+1),ROWS($B$3:B29)))&CHAR(10),\"\")","v":""}]
[null,{"$f":"IFERROR(INDEX(Działanie,SMALL(IF(Cel=$B$2,ROW(Działanie)-MIN(ROW(Działanie))+1),ROWS($B$3:B30)))&\" \"&CHAR(10)&(INDEX(Wynik,SMALL(IF(Cel=$B$2,ROW(Wynik)-MIN(ROW(Wynik))+1),ROWS($B$3:B30))))&CHAR(10),\"\")","v":""},null,{"$f":"IFERROR(INDEX(Działanie,SMALL(IF(Cel=$D$2,ROW(Działanie)-MIN(ROW(Działanie))+1),ROWS($B$3:B30)))&CHAR(10),\"\")","v":""},null,{"$f":"IFERROR(INDEX(Działanie,SMALL(IF(Cel=$F$2,ROW(Działanie)-MIN(ROW(Działanie))+1),ROWS($B$3:B30)))&CHAR(10),\"\")","v":""},null,{"$f":"IFERROR(INDEX(Działanie,SMALL(IF(Cel=$H$2,ROW(Działanie)-MIN(ROW(Działanie))+1),ROWS($B$3:B30)))&CHAR(10),\"\")","v":""}]
[null,{"$f":"IFERROR(INDEX(Działanie,SMALL(IF(Cel=$B$2,ROW(Działanie)-MIN(ROW(Działanie))+1),ROWS($B$3:B31)))&\" \"&CHAR(10)&(INDEX(Wynik,SMALL(IF(Cel=$B$2,ROW(Wynik)-MIN(ROW(Wynik))+1),ROWS($B$3:B31))))&CHAR(10),\"\")","v":""},null,{"$f":"IFERROR(INDEX(Działanie,SMALL(IF(Cel=$D$2,ROW(Działanie)-MIN(ROW(Działanie))+1),ROWS($B$3:B31)))&CHAR(10),\"\")","v":""},null,{"$f":"IFERROR(INDEX(Działanie,SMALL(IF(Cel=$F$2,ROW(Działanie)-MIN(ROW(Działanie))+1),ROWS($B$3:B31)))&CHAR(10),\"\")","v":""},null,{"$f":"IFERROR(INDEX(Działanie,SMALL(IF(Cel=$H$2,ROW(Działanie)-MIN(ROW(Działanie))+1),ROWS($B$3:B31)))&CHAR(10),\"\")","v":""}]
[null,{"$f":"IFERROR(INDEX(Działanie,SMALL(IF(Cel=$B$2,ROW(Działanie)-MIN(ROW(Działanie))+1),ROWS($B$3:B32)))&\" \"&CHAR(10)&(INDEX(Wynik,SMALL(IF(Cel=$B$2,ROW(Wynik)-MIN(ROW(Wynik))+1),ROWS($B$3:B32))))&CHAR(10),\"\")","v":""},null,{"$f":"IFERROR(INDEX(Działanie,SMALL(IF(Cel=$D$2,ROW(Działanie)-MIN(ROW(Działanie))+1),ROWS($B$3:B32)))&CHAR(10),\"\")","v":""},null,{"$f":"IFERROR(INDEX(Działanie,SMALL(IF(Cel=$F$2,ROW(Działanie)-MIN(ROW(Działanie))+1),ROWS($B$3:B32)))&CHAR(10),\"\")","v":""},null,{"$f":"IFERROR(INDEX(Działanie,SMALL(IF(Cel=$H$2,ROW(Działanie)-MIN(ROW(Działanie))+1),ROWS($B$3:B32)))&CHAR(10),\"\")","v":""}]
[null,{"$f":"IFERROR(INDEX(Działanie,SMALL(IF(Cel=$B$2,ROW(Działanie)-MIN(ROW(Działanie))+1),ROWS($B$3:B33)))&\" \"&CHAR(10)&(INDEX(Wynik,SMALL(IF(Cel=$B$2,ROW(Wynik)-MIN(ROW(Wynik))+1),ROWS($B$3:B33))))&CHAR(10),\"\")","v":""},null,{"$f":"IFERROR(INDEX(Działanie,SMALL(IF(Cel=$D$2,ROW(Działanie)-MIN(ROW(Działanie))+1),ROWS($B$3:B33)))&CHAR(10),\"\")","v":""},null,{"$f":"IFERROR(INDEX(Działanie,SMALL(IF(Cel=$F$2,ROW(Działanie)-MIN(ROW(Działanie))+1),ROWS($B$3:B33)))&CHAR(10),\"\")","v":""},null,{"$f":"IFERROR(INDEX(Działanie,SMALL(IF(Cel=$H$2,ROW(Działanie)-MIN(ROW(Działanie))+1),ROWS($B$3:B33)))&CHAR(10),\"\")","v":""}]
[null,{"$f":"IFERROR(INDEX(Działanie,SMALL(IF(Cel=$B$2,ROW(Działanie)-MIN(ROW(Działanie))+1),ROWS($B$3:B34)))&\" \"&CHAR(10)&(INDEX(Wynik,SMALL(IF(Cel=$B$2,ROW(Wynik)-MIN(ROW(Wynik))+1),ROWS($B$3:B34))))&CHAR(10),\"\")","v":""},null,{"$f":"IFERROR(INDEX(Działanie,SMALL(IF(Cel=$D$2,ROW(Działanie)-MIN(ROW(Działanie))+1),ROWS($B$3:B34)))&CHAR(10),\"\")","v":""},null,{"$f":"IFERROR(INDEX(Działanie,SMALL(IF(Cel=$F$2,ROW(Działanie)-MIN(ROW(Działanie))+1),ROWS($B$3:B34)))&CHAR(10),\"\")","v":""},null,{"$f":"IFERROR(INDEX(Działanie,SMALL(IF(Cel=$H$2,ROW(Działanie)-MIN(ROW(Działanie))+1),ROWS($B$3:B34)))&CHAR(10),\"\")","v":""}]
[null,{"$f":"IFERROR(INDEX(Działanie,SMALL(IF(Cel=$B$2,ROW(Działanie)-MIN(ROW(Działanie))+1),ROWS($B$3:B35)))&\" \"&CHAR(10)&(INDEX(Wynik,SMALL(IF(Cel=$B$2,ROW(Wynik)-MIN(ROW(Wynik))+1),ROWS($B$3:B35))))&CHAR(10),\"\")","v":""},null,{"$f":"IFERROR(INDEX(Działanie,SMALL(IF(Cel=$D$2,ROW(Działanie)-MIN(ROW(Działanie))+1),ROWS($B$3:B35)))&CHAR(10),\"\")","v":""},null,{"$f":"IFERROR(INDEX(Działanie,SMALL(IF(Cel=$F$2,ROW(Działanie)-MIN(ROW(Działanie))+1),ROWS($B$3:B35)))&CHAR(10),\"\")","v":""},null,{"$f":"IFERROR(INDEX(Działanie,SMALL(IF(Cel=$H$2,ROW(Działanie)-MIN(ROW(Działanie))+1),ROWS($B$3:B35)))&CHAR(10),\"\")","v":""}]
[null,{"$f":"IFERROR(INDEX(Działanie,SMALL(IF(Cel=$B$2,ROW(Działanie)-MIN(ROW(Działanie))+1),ROWS($B$3:B36)))&\" \"&CHAR(10)&(INDEX(Wynik,SMALL(IF(Cel=$B$2,ROW(Wynik)-MIN(ROW(Wynik))+1),ROWS($B$3:B36))))&CHAR(10),\"\")","v":""},null,{"$f":"IFERROR(INDEX(Działanie,SMALL(IF(Cel=$D$2,ROW(Działanie)-MIN(ROW(Działanie))+1),ROWS($B$3:B36)))&CHAR(10),\"\")","v":""},null,{"$f":"IFERROR(INDEX(Działanie,SMALL(IF(Cel=$F$2,ROW(Działanie)-MIN(ROW(Działanie))+1),ROWS($B$3:B36)))&CHAR(10),\"\")","v":""},null,{"$f":"IFERROR(INDEX(Działanie,SMALL(IF(Cel=$H$2,ROW(Działanie)-MIN(ROW(Działanie))+1),ROWS($B$3:B36)))&CHAR(10),\"\")","v":""}]
[null,{"$f":"IFERROR(INDEX(Działanie,SMALL(IF(Cel=$B$2,ROW(Działanie)-MIN(ROW(Działanie))+1),ROWS($B$3:B37)))&\" \"&CHAR(10)&(INDEX(Wynik,SMALL(IF(Cel=$B$2,ROW(Wynik)-MIN(ROW(Wynik))+1),ROWS($B$3:B37))))&CHAR(10),\"\")","v":""},null,{"$f":"IFERROR(INDEX(Działanie,SMALL(IF(Cel=$D$2,ROW(Działanie)-MIN(ROW(Działanie))+1),ROWS($B$3:B37)))&CHAR(10),\"\")","v":""},null,{"$f":"IFERROR(INDEX(Działanie,SMALL(IF(Cel=$F$2,ROW(Działanie)-MIN(ROW(Działanie))+1),ROWS($B$3:B37)))&CHAR(10),\"\")","v":""},null,{"$f":"IFERROR(INDEX(Działanie,SMALL(IF(Cel=$H$2,ROW(Działanie)-MIN(ROW(Działanie))+1),ROWS($B$3:B37)))&CHAR(10),\"\")","v":""}]
[null,{"$f":"IFERROR(INDEX(Działanie,SMALL(IF(Cel=$B$2,ROW(Działanie)-MIN(ROW(Działanie))+1),ROWS($B$3:B38)))&\" \"&CHAR(10)&(INDEX(Wynik,SMALL(IF(Cel=$B$2,ROW(Wynik)-MIN(ROW(Wynik))+1),ROWS($B$3:B38))))&CHAR(10),\"\")","v":""},null,{"$f":"IFERROR(INDEX(Działanie,SMALL(IF(Cel=$D$2,ROW(Działanie)-MIN(ROW(Działanie))+1),ROWS($B$3:B38)))&CHAR(10),\"\")","v":""},null,{"$f":"IFERROR(INDEX(Działanie,SMALL(IF(Cel=$F$2,ROW(Działanie)-MIN(ROW(Działanie))+1),ROWS($B$3:B38)))&CHAR(10),\"\")","v":""},null,{"$f":"IFERROR(INDEX(Działanie,SMALL(IF(Cel=$H$2,ROW(Działanie)-MIN(ROW(Działanie))+1),ROWS($B$3:B38)))&CHAR(10),\"\")","v":""}]
[null,{"$f":"IFERROR(INDEX(Działanie,SMALL(IF(Cel=$B$2,ROW(Działanie)-MIN(ROW(Działanie))+1),ROWS($B$3:B39)))&\" \"&CHAR(10)&(INDEX(Wynik,SMALL(IF(Cel=$B$2,ROW(Wynik)-MIN(ROW(Wynik))+1),ROWS($B$3:B39))))&CHAR(10),\"\")","v":""},null,{"$f":"IFERROR(INDEX(Działanie,SMALL(IF(Cel=$D$2,ROW(Działanie)-MIN(ROW(Działanie))+1),ROWS($B$3:B39)))&CHAR(10),\"\")","v":""},null,{"$f":"IFERROR(INDEX(Działanie,SMALL(IF(Cel=$F$2,ROW(Działanie)-MIN(ROW(Działanie))+1),ROWS($B$3:B39)))&CHAR(10),\"\")","v":""},null,{"$f":"IFERROR(INDEX(Działanie,SMALL(IF(Cel=$H$2,ROW(Działanie)-MIN(ROW(Działanie))+1),ROWS($B$3:B39)))&CHAR(10),\"\")","v":""}]
[null,{"$f":"IFERROR(INDEX(Działanie,SMALL(IF(Cel=$B$2,ROW(Działanie)-MIN(ROW(Działanie))+1),ROWS($B$3:B40)))&\" \"&CHAR(10)&(INDEX(Wynik,SMALL(IF(Cel=$B$2,ROW(Wynik)-MIN(ROW(Wynik))+1),ROWS($B$3:B40))))&CHAR(10),\"\")","v":""},null,{"$f":"IFERROR(INDEX(Działanie,SMALL(IF(Cel=$D$2,ROW(Działanie)-MIN(ROW(Działanie))+1),ROWS($B$3:B40)))&CHAR(10),\"\")","v":""},null,{"$f":"IFERROR(INDEX(Działanie,SMALL(IF(Cel=$F$2,ROW(Działanie)-MIN(ROW(Działanie))+1),ROWS($B$3:B40)))&CHAR(10),\"\")","v":""},null,{"$f":"IFERROR(INDEX(Działanie,SMALL(IF(Cel=$H$2,ROW(Działanie)-MIN(ROW(Działanie))+1),ROWS($B$3:B40)))&CHAR(10),\"\")","v":""}]
[null,{"$f":"IFERROR(INDEX(Działanie,SMALL(IF(Cel=$B$2,ROW(Działanie)-MIN(ROW(Działanie))+1),ROWS($B$3:B41)))&\" \"&CHAR(10)&(INDEX(Wynik,SMALL(IF(Cel=$B$2,ROW(Wynik)-MIN(ROW(Wynik))+1),ROWS($B$3:B41))))&CHAR(10),\"\")","v":""},null,{"$f":"IFERROR(INDEX(Działanie,SMALL(IF(Cel=$D$2,ROW(Działanie)-MIN(ROW(Działanie))+1),ROWS($B$3:B41)))&CHAR(10),\"\")","v":""},null,{"$f":"IFERROR(INDEX(Działanie,SMALL(IF(Cel=$F$2,ROW(Działanie)-MIN(ROW(Działanie))+1),ROWS($B$3:B41)))&CHAR(10),\"\")","v":""},null,{"$f":"IFERROR(INDEX(Działanie,SMALL(IF(Cel=$H$2,ROW(Działanie)-MIN(ROW(Działanie))+1),ROWS($B$3:B41)))&CHAR(10),\"\")","v":""}]
[null,{"$f":"IFERROR(INDEX(Działanie,SMALL(IF(Cel=$B$2,ROW(Działanie)-MIN(ROW(Działanie))+1),ROWS($B$3:B42)))&\" \"&CHAR(10)&(INDEX(Wynik,SMALL(IF(Cel=$B$2,ROW(Wynik)-MIN(ROW(Wynik))+1),ROWS($B$3:B42))))&CHAR(10),\"\")","v":""},null,{"$f":"IFERROR(INDEX(Działanie,SMALL(IF(Cel=$D$2,ROW(Działanie)-MIN(ROW(Działanie))+1),ROWS($B$3:B42)))&CHAR(10),\"\")","v":""},null,{"$f":"IFERROR(INDEX(Działanie,SMALL(IF(Cel=$F$2,ROW(Działanie)-MIN(ROW(Działanie))+1),ROWS($B$3:B42)))&CHAR(10),\"\")","v":""},null,{"$f":"IFERROR(INDEX(Działanie,SMALL(IF(Cel=$H$2,ROW(Działanie)-MIN(ROW(Działanie))+1),ROWS($B$3:B42)))&CHAR(10),\"\")","v":""}]
[null,{"$f":"IFERROR(INDEX(Działanie,SMALL(IF(Cel=$B$2,ROW(Działanie)-MIN(ROW(Działanie))+1),ROWS($B$3:B43)))&\" \"&CHAR(10)&(INDEX(Wynik,SMALL(IF(Cel=$B$2,ROW(Wynik)-MIN(ROW(Wynik))+1),ROWS($B$3:B43))))&CHAR(10),\"\")","v":""},null,{"$f":"IFERROR(INDEX(Działanie,SMALL(IF(Cel=$D$2,ROW(Działanie)-MIN(ROW(Działanie))+1),ROWS($B$3:B43)))&CHAR(10),\"\")","v":""},null,{"$f":"IFERROR(INDEX(Działanie,SMALL(IF(Cel=$F$2,ROW(Działanie)-MIN(ROW(Działanie))+1),ROWS($B$3:B43)))&CHAR(10),\"\")","v":""},null,{"$f":"IFERROR(INDEX(Działanie,SMALL(IF(Cel=$H$2,ROW(Działanie)-MIN(ROW(Działanie))+1),ROWS($B$3:B43)))&CHAR(10),\"\")","v":""}]
[null,{"$f":"IFERROR(INDEX(Działanie,SMALL(IF(Cel=$B$2,ROW(Działanie)-MIN(ROW(Działanie))+1),ROWS($B$3:B44)))&\" \"&CHAR(10)&(INDEX(Wynik,SMALL(IF(Cel=$B$2,ROW(Wynik)-MIN(ROW(Wynik))+1),ROWS($B$3:B44))))&CHAR(10),\"\")","v":""},null,{"$f":"IFERROR(INDEX(Działanie,SMALL(IF(Cel=$D$2,ROW(Działanie)-MIN(ROW(Działanie))+1),ROWS($B$3:B44)))&CHAR(10),\"\")","v":""},null,{"$f":"IFERROR(INDEX(Działanie,SMALL(IF(Cel=$F$2,ROW(Działanie)-MIN(ROW(Działanie))+1),ROWS($B$3:B44)))&CHAR(10),\"\")","v":""},null,{"$f":"IFERROR(INDEX(Działanie,SMALL(IF(Cel=$H$2,ROW(Działanie)-MIN(ROW(Działanie))+1),ROWS($B$3:B44)))&CHAR(10),\"\")","v":""}]
[null,{"$f":"IFERROR(INDEX(Działanie,SMALL(IF(Cel=$B$2,ROW(Działanie)-MIN(ROW(Działanie))+1),ROWS($B$3:B45)))&\" \"&CHAR(10)&(INDEX(Wynik,SMALL(IF(Cel=$B$2,ROW(Wynik)-MIN(ROW(Wynik))+1),ROWS($B$3:B45))))&CHAR(10),\"\")","v":""},null,{"$f":"IFERROR(INDEX(Działanie,SMALL(IF(Cel=$D$2,ROW(Działanie)-MIN(ROW(Działanie))+1),ROWS($B$3:B45)))&CHAR(10),\"\")","v":""},null,{"$f":"IFERROR(INDEX(Działanie,SMALL(IF(Cel=$F$2,ROW(Działanie)-MIN(ROW(Działanie))+1),ROWS($B$3:B45)))&CHAR(10),\"\")","v":""},null,{"$f":"IFERROR(INDEX(Działanie,SMALL(IF(Cel=$H$2,ROW(Działanie)-MIN(ROW(Działanie))+1),ROWS($B$3:B45)))&CHAR(10),\"\")","v":""}]
[null,{"$f":"IFERROR(INDEX(Działanie,SMALL(IF(Cel=$B$2,ROW(Działanie)-MIN(ROW(Działanie))+1),ROWS($B$3:B46)))&\" \"&CHAR(10)&(INDEX(Wynik,SMALL(IF(Cel=$B$2,ROW(Wynik)-MIN(ROW(Wynik))+1),ROWS($B$3:B46))))&CHAR(10),\"\")","v":""},null,{"$f":"IFERROR(INDEX(Działanie,SMALL(IF(Cel=$D$2,ROW(Działanie)-MIN(ROW(Działanie))+1),ROWS($B$3:B46)))&CHAR(10),\"\")","v":""},null,{"$f":"IFERROR(INDEX(Działanie,SMALL(IF(Cel=$F$2,ROW(Działanie)-MIN(ROW(Działanie))+1),ROWS($B$3:B46)))&CHAR(10),\"\")","v":""},null,{"$f":"IFERROR(INDEX(Działanie,SMALL(IF(Cel=$H$2,ROW(Działanie)-MIN(ROW(Działanie))+1),ROWS($B$3:B46)))&CHAR(10),\"\")","v":""}]
[null,{"$f":"IFERROR(INDEX(Działanie,SMALL(IF(Cel=$B$2,ROW(Działanie)-MIN(ROW(Działanie))+1),ROWS($B$3:B47)))&\" \"&CHAR(10)&(INDEX(Wynik,SMALL(IF(Cel=$B$2,ROW(Wynik)-MIN(ROW(Wynik))+1),ROWS($B$3:B47))))&CHAR(10),\"\")","v":""},null,{"$f":"IFERROR(INDEX(Działanie,SMALL(IF(Cel=$D$2,ROW(Działanie)-MIN(ROW(Działanie))+1),ROWS($B$3:B47)))&CHAR(10),\"\")","v":""},null,{"$f":"IFERROR(INDEX(Działanie,SMALL(IF(Cel=$F$2,ROW(Działanie)-MIN(ROW(Działanie))+1),ROWS($B$3:B47)))&CHAR(10),\"\")","v":""},null,{"$f":"IFERROR(INDEX(Działanie,SMALL(IF(Cel=$H$2,ROW(Działanie)-MIN(ROW(Działanie))+1),ROWS($B$3:B47)))&CHAR(10),\"\")","v":""}]
[null,{"$f":"IFERROR(INDEX(Działanie,SMALL(IF(Cel=$B$2,ROW(Działanie)-MIN(ROW(Działanie))+1),ROWS($B$3:B48)))&\" \"&CHAR(10)&(INDEX(Wynik,SMALL(IF(Cel=$B$2,ROW(Wynik)-MIN(ROW(Wynik))+1),ROWS($B$3:B48))))&CHAR(10),\"\")","v":""},null,{"$f":"IFERROR(INDEX(Działanie,SMALL(IF(Cel=$D$2,ROW(Działanie)-MIN(ROW(Działanie))+1),ROWS($B$3:B48)))&CHAR(10),\"\")","v":""},null,{"$f":"IFERROR(INDEX(Działanie,SMALL(IF(Cel=$F$2,ROW(Działanie)-MIN(ROW(Działanie))+1),ROWS($B$3:B48)))&CHAR(10),\"\")","v":""},null,{"$f":"IFERROR(INDEX(Działanie,SMALL(IF(Cel=$H$2,ROW(Działanie)-MIN(ROW(Działanie))+1),ROWS($B$3:B48)))&CHAR(10),\"\")","v":""}]
[null,{"$f":"IFERROR(INDEX(Działanie,SMALL(IF(Cel=$B$2,ROW(Działanie)-MIN(ROW(Działanie))+1),ROWS($B$3:B49)))&\" \"&CHAR(10)&(INDEX(Wynik,SMALL(IF(Cel=$B$2,ROW(Wynik)-MIN(ROW(Wynik))+1),ROWS($B$3:B49))))&CHAR(10),\"\")","v":""},null,{"$f":"IFERROR(INDEX(Działanie,SMALL(IF(Cel=$D$2,ROW(Działanie)-MIN(ROW(Działanie))+1),ROWS($B$3:B49)))&CHAR(10),\"\")","v":""},null,{"$f":"IFERROR(INDEX(Działanie,SMALL(IF(Cel=$F$2,ROW(Działanie)-MIN(ROW(Działanie))+1),ROWS($B$3:B49)))&CHAR(10),\"\")","v":""},null,{"$f":"IFERROR(INDEX(Działanie,SMALL(IF(Cel=$H$2,ROW(Działanie)-MIN(ROW(Działanie))+1),ROWS($B$3:B49)))&CHAR(10),\"\")","v":""}]
[null,{"$f":"IFERROR(INDEX(Działanie,SMALL(IF(Cel=$B$2,ROW(Działanie)-MIN(ROW(Działanie))+1),ROWS($B$3:B50)))&\" \"&CHAR(10)&(INDEX(Wynik,SMALL(IF(Cel=$B$2,ROW(Wynik)-MIN(ROW(Wynik))+1),ROWS($B$3:B50))))&CHAR(10),\"\")","v":""},null,{"$f":"IFERROR(INDEX(Działanie,SMALL(IF(Cel=$D$2,ROW(Działanie)-MIN(ROW(Działanie))+1),ROWS($B$3:B50)))&CHAR(10),\"\")","v":""},null,{"$f":"IFERROR(INDEX(Działanie,SMALL(IF(Cel=$F$2,ROW(Działanie)-MIN(ROW(Działanie))+1),ROWS($B$3:B50)))&CHAR(10),\"\")","v":""},null,{"$f":"IFERROR(INDEX(Działanie,SMALL(IF(Cel=$H$2,ROW(Działanie)-MIN(ROW(Działanie))+1),ROWS($B$3:B50)))&CHAR(10),\"\")","v":""}]
[null,{"$f":"IFERROR(INDEX(Działanie,SMALL(IF(Cel=$B$2,ROW(Działanie)-MIN(ROW(Działanie))+1),ROWS($B$3:B51)))&\" \"&CHAR(10)&(INDEX(Wynik,SMALL(IF(Cel=$B$2,ROW(Wynik)-MIN(ROW(Wynik))+1),ROWS($B$3:B51))))&CHAR(10),\"\")","v":""},null,{"$f":"IFERROR(INDEX(Działanie,SMALL(IF(Cel=$D$2,ROW(Działanie)-MIN(ROW(Działanie))+1),ROWS($B$3:B51)))&CHAR(10),\"\")","v":""},null,{"$f":"IFERROR(INDEX(Działanie,SMALL(IF(Cel=$F$2,ROW(Działanie)-MIN(ROW(Działanie))+1),ROWS($B$3:B51)))&CHAR(10),\"\")","v":""},null,{"$f":"IFERROR(INDEX(Działanie,SMALL(IF(Cel=$H$2,ROW(Działanie)-MIN(ROW(Działanie))+1),ROWS($B$3:B51)))&CHAR(10),\"\")","v":""}]
[null,{"$f":"IFERROR(INDEX(Działanie,SMALL(IF(Cel=$B$2,ROW(Działanie)-MIN(ROW(Działanie))+1),ROWS($B$3:B52)))&\" \"&CHAR(10)&(INDEX(Wynik,SMALL(IF(Cel=$B$2,ROW(Wynik)-MIN(ROW(Wynik))+1),ROWS($B$3:B52))))&CHAR(10),\"\")","v":""},null,{"$f":"IFERROR(INDEX(Działanie,SMALL(IF(Cel=$D$2,ROW(Działanie)-MIN(ROW(Działanie))+1),ROWS($B$3:B52)))&CHAR(10),\"\")","v":""},null,{"$f":"IFERROR(INDEX(Działanie,SMALL(IF(Cel=$F$2,ROW(Działanie)-MIN(ROW(Działanie))+1),ROWS($B$3:B52)))&CHAR(10),\"\")","v":""},null,{"$f":"IFERROR(INDEX(Działanie,SMALL(IF(Cel=$H$2,ROW(Działanie)-MIN(ROW(Działanie))+1),ROWS($B$3:B52)))&CHAR(10),\"\")","v":""}]
[null,{"$f":"IFERROR(INDEX(Działanie,SMALL(IF(Cel=$B$2,ROW(Działanie)-MIN(ROW(Działanie))+1),ROWS($B$3:B53)))&\" \"&CHAR(10)&(INDEX(Wynik,SMALL(IF(Cel=$B$2,ROW(Wynik)-MIN(ROW(Wynik))+1),ROWS($B$3:B53))))&CHAR(10),\"\")","v":""},null,{"$f":"IFERROR(INDEX(Działanie,SMALL(IF(Cel=$D$2,ROW(Działanie)-MIN(ROW(Działanie))+1),ROWS($B$3:B53)))&CHAR(10),\"\")","v":""},null,{"$f":"IFERROR(INDEX(Działanie,SMALL(IF(Cel=$F$2,ROW(Działanie)-MIN(ROW(Działanie))+1),ROWS($B$3:B53)))&CHAR(10),\"\")","v":""},null,{"$f":"IFERROR(INDEX(Działanie,SMALL(IF(Cel=$H$2,ROW(Działanie)-MIN(ROW(Działanie))+1),ROWS($B$3:B53)))&CHAR(10),\"\")","v":""}]
[null,{"$f":"IFERROR(INDEX(Działanie,SMALL(IF(Cel=$B$2,ROW(Działanie)-MIN(ROW(Działanie))+1),ROWS($B$3:B54)))&\" \"&CHAR(10)&(INDEX(Wynik,SMALL(IF(Cel=$B$2,ROW(Wynik)-MIN(ROW(Wynik))+1),ROWS($B$3:B54))))&CHAR(10),\"\")","v":""},null,{"$f":"IFERROR(INDEX(Działanie,SMALL(IF(Cel=$D$2,ROW(Działanie)-MIN(ROW(Działanie))+1),ROWS($B$3:B54)))&CHAR(10),\"\")","v":""},null,{"$f":"IFERROR(INDEX(Działanie,SMALL(IF(Cel=$F$2,ROW(Działanie)-MIN(ROW(Działanie))+1),ROWS($B$3:B54)))&CHAR(10),\"\")","v":""},null,{"$f":"IFERROR(INDEX(Działanie,SMALL(IF(Cel=$H$2,ROW(Działanie)-MIN(ROW(Działanie))+1),ROWS($B$3:B54)))&CHAR(10),\"\")","v":""}]
[null,{"$f":"IFERROR(INDEX(Działanie,SMALL(IF(Cel=$B$2,ROW(Działanie)-MIN(ROW(Działanie))+1),ROWS($B$3:B55)))&\" \"&CHAR(10)&(INDEX(Wynik,SMALL(IF(Cel=$B$2,ROW(Wynik)-MIN(ROW(Wynik))+1),ROWS($B$3:B55))))&CHAR(10),\"\")","v":""},null,{"$f":"IFERROR(INDEX(Działanie,SMALL(IF(Cel=$D$2,ROW(Działanie)-MIN(ROW(Działanie))+1),ROWS($B$3:B55)))&CHAR(10),\"\")","v":""},null,{"$f":"IFERROR(INDEX(Działanie,SMALL(IF(Cel=$F$2,ROW(Działanie)-MIN(ROW(Działanie))+1),ROWS($B$3:B55)))&CHAR(10),\"\")","v":""},null,{"$f":"IFERROR(INDEX(Działanie,SMALL(IF(Cel=$H$2,ROW(Działanie)-MIN(ROW(Działanie))+1),ROWS($B$3:B55)))&CHAR(10),\"\")","v":""}]
[null,{"$f":"IFERROR(INDEX(Działanie,SMALL(IF(Cel=$B$2,ROW(Działanie)-MIN(ROW(Działanie))+1),ROWS($B$3:B56)))&\" \"&CHAR(10)&(INDEX(Wynik,SMALL(IF(Cel=$B$2,ROW(Wynik)-MIN(ROW(Wynik))+1),ROWS($B$3:B56))))&CHAR(10),\"\")","v":""},null,{"$f":"IFERROR(INDEX(Działanie,SMALL(IF(Cel=$D$2,ROW(Działanie)-MIN(ROW(Działanie))+1),ROWS($B$3:B56)))&CHAR(10),\"\")","v":""},null,{"$f":"IFERROR(INDEX(Działanie,SMALL(IF(Cel=$F$2,ROW(Działanie)-MIN(ROW(Działanie))+1),ROWS($B$3:B56)))&CHAR(10),\"\")","v":""},null,{"$f":"IFERROR(INDEX(Działanie,SMALL(IF(Cel=$H$2,ROW(Działanie)-MIN(ROW(Działanie))+1),ROWS($B$3:B56)))&CHAR(10),\"\")","v":""}]
[null,{"$f":"IFERROR(INDEX(Działanie,SMALL(IF(Cel=$B$2,ROW(Działanie)-MIN(ROW(Działanie))+1),ROWS($B$3:B57)))&\" \"&CHAR(10)&(INDEX(Wynik,SMALL(IF(Cel=$B$2,ROW(Wynik)-MIN(ROW(Wynik))+1),ROWS($B$3:B57))))&CHAR(10),\"\")","v":""},null,{"$f":"IFERROR(INDEX(Działanie,SMALL(IF(Cel=$D$2,ROW(Działanie)-MIN(ROW(Działanie))+1),ROWS($B$3:B57)))&CHAR(10),\"\")","v":""},null,{"$f":"IFERROR(INDEX(Działanie,SMALL(IF(Cel=$F$2,ROW(Działanie)-MIN(ROW(Działanie))+1),ROWS($B$3:B57)))&CHAR(10),\"\")","v":""},null,{"$f":"IFERROR(INDEX(Działanie,SMALL(IF(Cel=$H$2,ROW(Działanie)-MIN(ROW(Działanie))+1),ROWS($B$3:B57)))&CHAR(10),\"\")","v":""}]
[null,{"$f":"IFERROR(INDEX(Działanie,SMALL(IF(Cel=$B$2,ROW(Działanie)-MIN(ROW(Działanie))+1),ROWS($B$3:B58)))&\" \"&CHAR(10)&(INDEX(Wynik,SMALL(IF(Cel=$B$2,ROW(Wynik)-MIN(ROW(Wynik))+1),ROWS($B$3:B58))))&CHAR(10),\"\")","v":""},null,{"$f":"IFERROR(INDEX(Działanie,SMALL(IF(Cel=$D$2,ROW(Działanie)-MIN(ROW(Działanie))+1),ROWS($B$3:B58)))&CHAR(10),\"\")","v":""},null,{"$f":"IFERROR(INDEX(Działanie,SMALL(IF(Cel=$F$2,ROW(Działanie)-MIN(ROW(Działanie))+1),ROWS($B$3:B58)))&CHAR(10),\"\")","v":""},null,{"$f":"IFERROR(INDEX(Działanie,SMALL(IF(Cel=$H$2,ROW(Działanie)-MIN(ROW(Działanie))+1),ROWS($B$3:B58)))&CHAR(10),\"\")","v":""}]
[null,{"$f":"IFERROR(INDEX(Działanie,SMALL(IF(Cel=$B$2,ROW(Działanie)-MIN(ROW(Działanie))+1),ROWS($B$3:B59)))&\" \"&CHAR(10)&(INDEX(Wynik,SMALL(IF(Cel=$B$2,ROW(Wynik)-MIN(ROW(Wynik))+1),ROWS($B$3:B59))))&CHAR(10),\"\")","v":""},null,{"$f":"IFERROR(INDEX(Działanie,SMALL(IF(Cel=$D$2,ROW(Działanie)-MIN(ROW(Działanie))+1),ROWS($B$3:B59)))&CHAR(10),\"\")","v":""},null,{"$f":"IFERROR(INDEX(Działanie,SMALL(IF(Cel=$F$2,ROW(Działanie)-MIN(ROW(Działanie))+1),ROWS($B$3:B59)))&CHAR(10),\"\")","v":""},null,{"$f":"IFERROR(INDEX(Działanie,SMALL(IF(Cel=$H$2,ROW(Działanie)-MIN(ROW(Działanie))+1),ROWS($B$3:B59)))&CHAR(10),\"\")","v":""}]
[null,{"$f":"IFERROR(INDEX(Działanie,SMALL(IF(Cel=$B$2,ROW(Działanie)-MIN(ROW(Działanie))+1),ROWS($B$3:B60)))&\" \"&CHAR(10)&(INDEX(Wynik,SMALL(IF(Cel=$B$2,ROW(Wynik)-MIN(ROW(Wynik))+1),ROWS($B$3:B60))))&CHAR(10),\"\")","v":""},null,{"$f":"IFERROR(INDEX(Działanie,SMALL(IF(Cel=$D$2,ROW(Działanie)-MIN(ROW(Działanie))+1),ROWS($B$3:B60)))&CHAR(10),\"\")","v":""},null,{"$f":"IFERROR(INDEX(Działanie,SMALL(IF(Cel=$F$2,ROW(Działanie)-MIN(ROW(Działanie))+1),ROWS($B$3:B60)))&CHAR(10),\"\")","v":""},null,{"$f":"IFERROR(INDEX(Działanie,SMALL(IF(Cel=$H$2,ROW(Działanie)-MIN(ROW(Działanie))+1),ROWS($B$3:B60)))&CHAR(10),\"\")","v":""}]
[null,{"$f":"IFERROR(INDEX(Działanie,SMALL(IF(Cel=$B$2,ROW(Działanie)-MIN(ROW(Działanie))+1),ROWS($B$3:B61)))&\" \"&CHAR(10)&(INDEX(Wynik,SMALL(IF(Cel=$B$2,ROW(Wynik)-MIN(ROW(Wynik))+1),ROWS($B$3:B61))))&CHAR(10),\"\")","v":""},null,{"$f":"IFERROR(INDEX(Działanie,SMALL(IF(Cel=$D$2,ROW(Działanie)-MIN(ROW(Działanie))+1),ROWS($B$3:B61)))&CHAR(10),\"\")","v":""},null,{"$f":"IFERROR(INDEX(Działanie,SMALL(IF(Cel=$F$2,ROW(Działanie)-MIN(ROW(Działanie))+1),ROWS($B$3:B61)))&CHAR(10),\"\")","v":""},null,{"$f":"IFERROR(INDEX(Działanie,SMALL(IF(Cel=$H$2,ROW(Działanie)-MIN(ROW(Działanie))+1),ROWS($B$3:B61)))&CHAR(10),\"\")","v":""}]
[null,{"$f":"IFERROR(INDEX(Działanie,SMALL(IF(Cel=$B$2,ROW(Działanie)-MIN(ROW(Działanie))+1),ROWS($B$3:B62)))&\" \"&CHAR(10)&(INDEX(Wynik,SMALL(IF(Cel=$B$2,ROW(Wynik)-MIN(ROW(Wynik))+1),ROWS($B$3:B62))))&CHAR(10),\"\")","v":""},null,{"$f":"IFERROR(INDEX(Działanie,SMALL(IF(Cel=$D$2,ROW(Działanie)-MIN(ROW(Działanie))+1),ROWS($B$3:B62)))&CHAR(10),\"\")","v":""},null,{"$f":"IFERROR(INDEX(Działanie,SMALL(IF(Cel=$F$2,ROW(Działanie)-MIN(ROW(Działanie))+1),ROWS($B$3:B62)))&CHAR(10),\"\")","v":""},null,{"$f":"IFERROR(INDEX(Działanie,SMALL(IF(Cel=$H$2,ROW(Działanie)-MIN(ROW(Działanie))+1),ROWS($B$3:B62)))&CHAR(10),\"\")","v":""}]
[null,{"$f":"IFERROR(INDEX(Działanie,SMALL(IF(Cel=$B$2,ROW(Działanie)-MIN(ROW(Działanie))+1),ROWS($B$3:B63)))&\" \"&CHAR(10)&(INDEX(Wynik,SMALL(IF(Cel=$B$2,ROW(Wynik)-MIN(ROW(Wynik))+1),ROWS($B$3:B63))))&CHAR(10),\"\")","v":""},null,{"$f":"IFERROR(INDEX(Działanie,SMALL(IF(Cel=$D$2,ROW(Działanie)-MIN(ROW(Działanie))+1),ROWS($B$3:B63)))&CHAR(10),\"\")","v":""},null,{"$f":"IFERROR(INDEX(Działanie,SMALL(IF(Cel=$F$2,ROW(Działanie)-MIN(ROW(Działanie))+1),ROWS($B$3:B63)))&CHAR(10),\"\")","v":""},null,{"$f":"IFERROR(INDEX(Działanie,SMALL(IF(Cel=$H$2,ROW(Działanie)-MIN(ROW(Działanie))+1),ROWS($B$3:B63)))&CHAR(10),\"\")","v":""}]
[null,{"$f":"IFERROR(INDEX(Działanie,SMALL(IF(Cel=$B$2,ROW(Działanie)-MIN(ROW(Działanie))+1),ROWS($B$3:B64)))&\" \"&CHAR(10)&(INDEX(Wynik,SMALL(IF(Cel=$B$2,ROW(Wynik)-MIN(ROW(Wynik))+1),ROWS($B$3:B64))))&CHAR(10),\"\")","v":""},null,{"$f":"IFERROR(INDEX(Działanie,SMALL(IF(Cel=$D$2,ROW(Działanie)-MIN(ROW(Działanie))+1),ROWS($B$3:B64)))&CHAR(10),\"\")","v":""},null,{"$f":"IFERROR(INDEX(Działanie,SMALL(IF(Cel=$F$2,ROW(Działanie)-MIN(ROW(Działanie))+1),ROWS($B$3:B64)))&CHAR(10),\"\")","v":""},null,{"$f":"IFERROR(INDEX(Działanie,SMALL(IF(Cel=$H$2,ROW(Działanie)-MIN(ROW(Działanie))+1),ROWS($B$3:B64)))&CHAR(10),\"\")","v":""}]
[null,{"$f":"IFERROR(INDEX(Działanie,SMALL(IF(Cel=$B$2,ROW(Działanie)-MIN(ROW(Działanie))+1),ROWS($B$3:B65)))&\" \"&CHAR(10)&(INDEX(Wynik,SMALL(IF(Cel=$B$2,ROW(Wynik)-MIN(ROW(Wynik))+1),ROWS($B$3:B65))))&CHAR(10),\"\")","v":""},null,{"$f":"IFERROR(INDEX(Działanie,SMALL(IF(Cel=$D$2,ROW(Działanie)-MIN(ROW(Działanie))+1),ROWS($B$3:B65)))&CHAR(10),\"\")","v":""},null,{"$f":"IFERROR(INDEX(Działanie,SMALL(IF(Cel=$F$2,ROW(Działanie)-MIN(ROW(Działanie))+1),ROWS($B$3:B65)))&CHAR(10),\"\")","v":""},null,{"$f":"IFERROR(INDEX(Działanie,SMALL(IF(Cel=$H$2,ROW(Działanie)-MIN(ROW(Działanie))+1),ROWS($B$3:B65)))&CHAR(10),\"\")","v":""}]
[null,{"$f":"IFERROR(INDEX(Działanie,SMALL(IF(Cel=$B$2,ROW(Działanie)-MIN(ROW(Działanie))+1),ROWS($B$3:B66)))&\" \"&CHAR(10)&(INDEX(Wynik,SMALL(IF(Cel=$B$2,ROW(Wynik)-MIN(ROW(Wynik))+1),ROWS($B$3:B66))))&CHAR(10),\"\")","v":""},null,{"$f":"IFERROR(INDEX(Działanie,SMALL(IF(Cel=$D$2,ROW(Działanie)-MIN(ROW(Działanie))+1),ROWS($B$3:B66)))&CHAR(10),\"\")","v":""},null,{"$f":"IFERROR(INDEX(Działanie,SMALL(IF(Cel=$F$2,ROW(Działanie)-MIN(ROW(Działanie))+1),ROWS($B$3:B66)))&CHAR(10),\"\")","v":""},null,{"$f":"IFERROR(INDEX(Działanie,SMALL(IF(Cel=$H$2,ROW(Działanie)-MIN(ROW(Działanie))+1),ROWS($B$3:B66)))&CHAR(10),\"\")","v":""}]
[null,{"$f":"IFERROR(INDEX(Działanie,SMALL(IF(Cel=$B$2,ROW(Działanie)-MIN(ROW(Działanie))+1),ROWS($B$3:B67)))&\" \"&CHAR(10)&(INDEX(Wynik,SMALL(IF(Cel=$B$2,ROW(Wynik)-MIN(ROW(Wynik))+1),ROWS($B$3:B67))))&CHAR(10),\"\")","v":""},null,{"$f":"IFERROR(INDEX(Działanie,SMALL(IF(Cel=$D$2,ROW(Działanie)-MIN(ROW(Działanie))+1),ROWS($B$3:B67)))&CHAR(10),\"\")","v":""},null,{"$f":"IFERROR(INDEX(Działanie,SMALL(IF(Cel=$F$2,ROW(Działanie)-MIN(ROW(Działanie))+1),ROWS($B$3:B67)))&CHAR(10),\"\")","v":""},null,{"$f":"IFERROR(INDEX(Działanie,SMALL(IF(Cel=$H$2,ROW(Działanie)-MIN(ROW(Działanie))+1),ROWS($B$3:B67)))&CHAR(10),\"\")","v":""}]
[null,{"$f":"IFERROR(INDEX(Działanie,SMALL(IF(Cel=$B$2,ROW(Działanie)-MIN(ROW(Działanie))+1),ROWS($B$3:B68)))&\" \"&CHAR(10)&(INDEX(Wynik,SMALL(IF(Cel=$B$2,ROW(Wynik)-MIN(ROW(Wynik))+1),ROWS($B$3:B68))))&CHAR(10),\"\")","v":""},null,{"$f":"IFERROR(INDEX(Działanie,SMALL(IF(Cel=$D$2,ROW(Działanie)-MIN(ROW(Działanie))+1),ROWS($B$3:B68)))&CHAR(10),\"\")","v":""},null,{"$f":"IFERROR(INDEX(Działanie,SMALL(IF(Cel=$F$2,ROW(Działanie)-MIN(ROW(Działanie))+1),ROWS($B$3:B68)))&CHAR(10),\"\")","v":""},null,{"$f":"IFERROR(INDEX(Działanie,SMALL(IF(Cel=$H$2,ROW(Działanie)-MIN(ROW(Działanie))+1),ROWS($B$3:B68)))&CHAR(10),\"\")","v":""}]
[null,{"$f":"IFERROR(INDEX(Działanie,SMALL(IF(Cel=$B$2,ROW(Działanie)-MIN(ROW(Działanie))+1),ROWS($B$3:B69)))&\" \"&CHAR(10)&(INDEX(Wynik,SMALL(IF(Cel=$B$2,ROW(Wynik)-MIN(ROW(Wynik))+1),ROWS($B$3:B69))))&CHAR(10),\"\")","v":""},null,{"$f":"IFERROR(INDEX(Działanie,SMALL(IF(Cel=$D$2,ROW(Działanie)-MIN(ROW(Działanie))+1),ROWS($B$3:B69)))&CHAR(10),\"\")","v":""},null,{"$f":"IFERROR(INDEX(Działanie,SMALL(IF(Cel=$F$2,ROW(Działanie)-MIN(ROW(Działanie))+1),ROWS($B$3:B69)))&CHAR(10),\"\")","v":""},null,{"$f":"IFERROR(INDEX(Działanie,SMALL(IF(Cel=$H$2,ROW(Działanie)-MIN(ROW(Działanie))+1),ROWS($B$3:B69)))&CHAR(10),\"\")","v":""}]
[null,{"$f":"IFERROR(INDEX(Działanie,SMALL(IF(Cel=$B$2,ROW(Działanie)-MIN(ROW(Działanie))+1),ROWS($B$3:B70)))&\" \"&CHAR(10)&(INDEX(Wynik,SMALL(IF(Cel=$B$2,ROW(Wynik)-MIN(ROW(Wynik))+1),ROWS($B$3:B70))))&CHAR(10),\"\")","v":""},null,{"$f":"IFERROR(INDEX(Działanie,SMALL(IF(Cel=$D$2,ROW(Działanie)-MIN(ROW(Działanie))+1),ROWS($B$3:B70)))&CHAR(10),\"\")","v":""},null,{"$f":"IFERROR(INDEX(Działanie,SMALL(IF(Cel=$F$2,ROW(Działanie)-MIN(ROW(Działanie))+1),ROWS($B$3:B70)))&CHAR(10),\"\")","v":""},null,{"$f":"IFERROR(INDEX(Działanie,SMALL(IF(Cel=$H$2,ROW(Działanie)-MIN(ROW(Działanie))+1),ROWS($B$3:B70)))&CHAR(10),\"\")","v":""}]
[null,{"$f":"IFERROR(INDEX(Działanie,SMALL(IF(Cel=$B$2,ROW(Działanie)-MIN(ROW(Działanie))+1),ROWS($B$3:B71)))&\" \"&CHAR(10)&(INDEX(Wynik,SMALL(IF(Cel=$B$2,ROW(Wynik)-MIN(ROW(Wynik))+1),ROWS($B$3:B71))))&CHAR(10),\"\")","v":""},null,{"$f":"IFERROR(INDEX(Działanie,SMALL(IF(Cel=$D$2,ROW(Działanie)-MIN(ROW(Działanie))+1),ROWS($B$3:B71)))&CHAR(10),\"\")","v":""},null,{"$f":"IFERROR(INDEX(Działanie,SMALL(IF(Cel=$F$2,ROW(Działanie)-MIN(ROW(Działanie))+1),ROWS($B$3:B71)))&CHAR(10),\"\")","v":""},null,{"$f":"IFERROR(INDEX(Działanie,SMALL(IF(Cel=$H$2,ROW(Działanie)-MIN(ROW(Działanie))+1),ROWS($B$3:B71)))&CHAR(10),\"\")","v":""}]
[null,{"$f":"IFERROR(INDEX(Działanie,SMALL(IF(Cel=$B$2,ROW(Działanie)-MIN(ROW(Działanie))+1),ROWS($B$3:B72)))&\" \"&CHAR(10)&(INDEX(Wynik,SMALL(IF(Cel=$B$2,ROW(Wynik)-MIN(ROW(Wynik))+1),ROWS($B$3:B72))))&CHAR(10),\"\")","v":""},null,{"$f":"IFERROR(INDEX(Działanie,SMALL(IF(Cel=$D$2,ROW(Działanie)-MIN(ROW(Działanie))+1),ROWS($B$3:B72)))&CHAR(10),\"\")","v":""},null,{"$f":"IFERROR(INDEX(Działanie,SMALL(IF(Cel=$F$2,ROW(Działanie)-MIN(ROW(Działanie))+1),ROWS($B$3:B72)))&CHAR(10),\"\")","v":""},null,{"$f":"IFERROR(INDEX(Działanie,SMALL(IF(Cel=$H$2,ROW(Działanie)-MIN(ROW(Działanie))+1),ROWS($B$3:B72)))&CHAR(10),\"\")","v":""}]
[null,{"$f":"IFERROR(INDEX(Działanie,SMALL(IF(Cel=$B$2,ROW(Działanie)-MIN(ROW(Działanie))+1),ROWS($B$3:B73)))&\" \"&CHAR(10)&(INDEX(Wynik,SMALL(IF(Cel=$B$2,ROW(Wynik)-MIN(ROW(Wynik))+1),ROWS($B$3:B73))))&CHAR(10),\"\")","v":""},null,{"$f":"IFERROR(INDEX(Działanie,SMALL(IF(Cel=$D$2,ROW(Działanie)-MIN(ROW(Działanie))+1),ROWS($B$3:B73)))&CHAR(10),\"\")","v":""},null,{"$f":"IFERROR(INDEX(Działanie,SMALL(IF(Cel=$F$2,ROW(Działanie)-MIN(ROW(Działanie))+1),ROWS($B$3:B73)))&CHAR(10),\"\")","v":""},null,{"$f":"IFERROR(INDEX(Działanie,SMALL(IF(Cel=$H$2,ROW(Działanie)-MIN(ROW(Działanie))+1),ROWS($B$3:B73)))&CHAR(10),\"\")","v":""}]
[null,{"$f":"IFERROR(INDEX(Działanie,SMALL(IF(Cel=$B$2,ROW(Działanie)-MIN(ROW(Działanie))+1),ROWS($B$3:B74)))&\" \"&CHAR(10)&(INDEX(Wynik,SMALL(IF(Cel=$B$2,ROW(Wynik)-MIN(ROW(Wynik))+1),ROWS($B$3:B74))))&CHAR(10),\"\")","v":""},null,{"$f":"IFERROR(INDEX(Działanie,SMALL(IF(Cel=$D$2,ROW(Działanie)-MIN(ROW(Działanie))+1),ROWS($B$3:B74)))&CHAR(10),\"\")","v":""},null,{"$f":"IFERROR(INDEX(Działanie,SMALL(IF(Cel=$F$2,ROW(Działanie)-MIN(ROW(Działanie))+1),ROWS($B$3:B74)))&CHAR(10),\"\")","v":""},null,{"$f":"IFERROR(INDEX(Działanie,SMALL(IF(Cel=$H$2,ROW(Działanie)-MIN(ROW(Działanie))+1),ROWS($B$3:B74)))&CHAR(10),\"\")","v":""}]
[null,{"$f":"IFERROR(INDEX(Działanie,SMALL(IF(Cel=$B$2,ROW(Działanie)-MIN(ROW(Działanie))+1),ROWS($B$3:B75)))&\" \"&CHAR(10)&(INDEX(Wynik,SMALL(IF(Cel=$B$2,ROW(Wynik)-MIN(ROW(Wynik))+1),ROWS($B$3:B75))))&CHAR(10),\"\")","v":""},null,{"$f":"IFERROR(INDEX(Działanie,SMALL(IF(Cel=$D$2,ROW(Działanie)-MIN(ROW(Działanie))+1),ROWS($B$3:B75)))&CHAR(10),\"\")","v":""},null,{"$f":"IFERROR(INDEX(Działanie,SMALL(IF(Cel=$F$2,ROW(Działanie)-MIN(ROW(Działanie))+1),ROWS($B$3:B75)))&CHAR(10),\"\")","v":""},null,{"$f":"IFERROR(INDEX(Działanie,SMALL(IF(Cel=$H$2,ROW(Działanie)-MIN(ROW(Działanie))+1),ROWS($B$3:B75)))&CHAR(10),\"\")","v":""}]
[null,{"$f":"IFERROR(INDEX(Działanie,SMALL(IF(Cel=$B$2,ROW(Działanie)-MIN(ROW(Działanie))+1),ROWS($B$3:B76)))&\" \"&CHAR(10)&(INDEX(Wynik,SMALL(IF(Cel=$B$2,ROW(Wynik)-MIN(ROW(Wynik))+1),ROWS($B$3:B76))))&CHAR(10),\"\")","v":""},null,{"$f":"IFERROR(INDEX(Działanie,SMALL(IF(Cel=$D$2,ROW(Działanie)-MIN(ROW(Działanie))+1),ROWS($B$3:B76)))&CHAR(10),\"\")","v":""},null,{"$f":"IFERROR(INDEX(Działanie,SMALL(IF(Cel=$F$2,ROW(Działanie)-MIN(ROW(Działanie))+1),ROWS($B$3:B76)))&CHAR(10),\"\")","v":""},null,{"$f":"IFERROR(INDEX(Działanie,SMALL(IF(Cel=$H$2,ROW(Działanie)-MIN(ROW(Działanie))+1),ROWS($B$3:B76)))&CHAR(10),\"\")","v":""}]
[null,{"$f":"IFERROR(INDEX(Działanie,SMALL(IF(Cel=$B$2,ROW(Działanie)-MIN(ROW(Działanie))+1),ROWS($B$3:B77)))&\" \"&CHAR(10)&(INDEX(Wynik,SMALL(IF(Cel=$B$2,ROW(Wynik)-MIN(ROW(Wynik))+1),ROWS($B$3:B77))))&CHAR(10),\"\")","v":""},null,{"$f":"IFERROR(INDEX(Działanie,SMALL(IF(Cel=$D$2,ROW(Działanie)-MIN(ROW(Działanie))+1),ROWS($B$3:B77)))&CHAR(10),\"\")","v":""},null,{"$f":"IFERROR(INDEX(Działanie,SMALL(IF(Cel=$F$2,ROW(Działanie)-MIN(ROW(Działanie))+1),ROWS($B$3:B77)))&CHAR(10),\"\")","v":""},null,{"$f":"IFERROR(INDEX(Działanie,SMALL(IF(Cel=$H$2,ROW(Działanie)-MIN(ROW(Działanie))+1),ROWS($B$3:B77)))&CHAR(10),\"\")","v":""}]
[null,{"$f":"IFERROR(INDEX(Działanie,SMALL(IF(Cel=$B$2,ROW(Działanie)-MIN(ROW(Działanie))+1),ROWS($B$3:B78)))&\" \"&CHAR(10)&(INDEX(Wynik,SMALL(IF(Cel=$B$2,ROW(Wynik)-MIN(ROW(Wynik))+1),ROWS($B$3:B78))))&CHAR(10),\"\")","v":""},null,{"$f":"IFERROR(INDEX(Działanie,SMALL(IF(Cel=$D$2,ROW(Działanie)-MIN(ROW(Działanie))+1),ROWS($B$3:B78)))&CHAR(10),\"\")","v":""},null,{"$f":"IFERROR(INDEX(Działanie,SMALL(IF(Cel=$F$2,ROW(Działanie)-MIN(ROW(Działanie))+1),ROWS($B$3:B78)))&CHAR(10),\"\")","v":""},null,{"$f":"IFERROR(INDEX(Działanie,SMALL(IF(Cel=$H$2,ROW(Działanie)-MIN(ROW(Działanie))+1),ROWS($B$3:B78)))&CHAR(10),\"\")","v":""}]
[null,{"$f":"IFERROR(INDEX(Działanie,SMALL(IF(Cel=$B$2,ROW(Działanie)-MIN(ROW(Działanie))+1),ROWS($B$3:B79)))&\" \"&CHAR(10)&(INDEX(Wynik,SMALL(IF(Cel=$B$2,ROW(Wynik)-MIN(ROW(Wynik))+1),ROWS($B$3:B79))))&CHAR(10),\"\")","v":""},null,{"$f":"IFERROR(INDEX(Działanie,SMALL(IF(Cel=$D$2,ROW(Działanie)-MIN(ROW(Działanie))+1),ROWS($B$3:B79)))&CHAR(10),\"\")","v":""},null,{"$f":"IFERROR(INDEX(Działanie,SMALL(IF(Cel=$F$2,ROW(Działanie)-MIN(ROW(Działanie))+1),ROWS($B$3:B79)))&CHAR(10),\"\")","v":""},null,{"$f":"IFERROR(INDEX(Działanie,SMALL(IF(Cel=$H$2,ROW(Działanie)-MIN(ROW(Działanie))+1),ROWS($B$3:B79)))&CHAR(10),\"\")","v":""}]
[null,{"$f":"IFERROR(INDEX(Działanie,SMALL(IF(Cel=$B$2,ROW(Działanie)-MIN(ROW(Działanie))+1),ROWS($B$3:B80)))&\" \"&CHAR(10)&(INDEX(Wynik,SMALL(IF(Cel=$B$2,ROW(Wynik)-MIN(ROW(Wynik))+1),ROWS($B$3:B80))))&CHAR(10),\"\")","v":""},null,{"$f":"IFERROR(INDEX(Działanie,SMALL(IF(Cel=$D$2,ROW(Działanie)-MIN(ROW(Działanie))+1),ROWS($B$3:B80)))&CHAR(10),\"\")","v":""},null,{"$f":"IFERROR(INDEX(Działanie,SMALL(IF(Cel=$F$2,ROW(Działanie)-MIN(ROW(Działanie))+1),ROWS($B$3:B80)))&CHAR(10),\"\")","v":""},null,{"$f":"IFERROR(INDEX(Działanie,SMALL(IF(Cel=$H$2,ROW(Działanie)-MIN(ROW(Działanie))+1),ROWS($B$3:B80)))&CHAR(10),\"\")","v":""}]
[null,{"$f":"IFERROR(INDEX(Działanie,SMALL(IF(Cel=$B$2,ROW(Działanie)-MIN(ROW(Działanie))+1),ROWS($B$3:B81)))&\" \"&CHAR(10)&(INDEX(Wynik,SMALL(IF(Cel=$B$2,ROW(Wynik)-MIN(ROW(Wynik))+1),ROWS($B$3:B81))))&CHAR(10),\"\")","v":""},null,{"$f":"IFERROR(INDEX(Działanie,SMALL(IF(Cel=$D$2,ROW(Działanie)-MIN(ROW(Działanie))+1),ROWS($B$3:B81)))&CHAR(10),\"\")","v":""},null,{"$f":"IFERROR(INDEX(Działanie,SMALL(IF(Cel=$F$2,ROW(Działanie)-MIN(ROW(Działanie))+1),ROWS($B$3:B81)))&CHAR(10),\"\")","v":""},null,{"$f":"IFERROR(INDEX(Działanie,SMALL(IF(Cel=$H$2,ROW(Działanie)-MIN(ROW(Działanie))+1),ROWS($B$3:B81)))&CHAR(10),\"\")","v":""}]
[null,{"$f":"IFERROR(INDEX(Działanie,SMALL(IF(Cel=$B$2,ROW(Działanie)-MIN(ROW(Działanie))+1),ROWS($B$3:B82)))&\" \"&CHAR(10)&(INDEX(Wynik,SMALL(IF(Cel=$B$2,ROW(Wynik)-MIN(ROW(Wynik))+1),ROWS($B$3:B82))))&CHAR(10),\"\")","v":""},null,{"$f":"IFERROR(INDEX(Działanie,SMALL(IF(Cel=$D$2,ROW(Działanie)-MIN(ROW(Działanie))+1),ROWS($B$3:B82)))&CHAR(10),\"\")","v":""},null,{"$f":"IFERROR(INDEX(Działanie,SMALL(IF(Cel=$F$2,ROW(Działanie)-MIN(ROW(Działanie))+1),ROWS($B$3:B82)))&CHAR(10),\"\")","v":""},null,{"$f":"IFERROR(INDEX(Działanie,SMALL(IF(Cel=$H$2,ROW(Działanie)-MIN(ROW(Działanie))+1),ROWS($B$3:B82)))&CHAR(10),\"\")","v":""}]
[null,{"$f":"IFERROR(INDEX(Działanie,SMALL(IF(Cel=$B$2,ROW(Działanie)-MIN(ROW(Działanie))+1),ROWS($B$3:B83)))&\" \"&CHAR(10)&(INDEX(Wynik,SMALL(IF(Cel=$B$2,ROW(Wynik)-MIN(ROW(Wynik))+1),ROWS($B$3:B83))))&CHAR(10),\"\")","v":""},null,{"$f":"IFERROR(INDEX(Działanie,SMALL(IF(Cel=$D$2,ROW(Działanie)-MIN(ROW(Działanie))+1),ROWS($B$3:B83)))&CHAR(10),\"\")","v":""},null,{"$f":"IFERROR(INDEX(Działanie,SMALL(IF(Cel=$F$2,ROW(Działanie)-MIN(ROW(Działanie))+1),ROWS($B$3:B83)))&CHAR(10),\"\")","v":""},null,{"$f":"IFERROR(INDEX(Działanie,SMALL(IF(Cel=$H$2,ROW(Działanie)-MIN(ROW(Działanie))+1),ROWS($B$3:B83)))&CHAR(10),\"\")","v":""}]
[null,{"$f":"IFERROR(INDEX(Działanie,SMALL(IF(Cel=$B$2,ROW(Działanie)-MIN(ROW(Działanie))+1),ROWS($B$3:B84)))&\" \"&CHAR(10)&(INDEX(Wynik,SMALL(IF(Cel=$B$2,ROW(Wynik)-MIN(ROW(Wynik))+1),ROWS($B$3:B84))))&CHAR(10),\"\")","v":""},null,{"$f":"IFERROR(INDEX(Działanie,SMALL(IF(Cel=$D$2,ROW(Działanie)-MIN(ROW(Działanie))+1),ROWS($B$3:B84)))&CHAR(10),\"\")","v":""},null,{"$f":"IFERROR(INDEX(Działanie,SMALL(IF(Cel=$F$2,ROW(Działanie)-MIN(ROW(Działanie))+1),ROWS($B$3:B84)))&CHAR(10),\"\")","v":""},null,{"$f":"IFERROR(INDEX(Działanie,SMALL(IF(Cel=$H$2,ROW(Działanie)-MIN(ROW(Działanie))+1),ROWS($B$3:B84)))&CHAR(10),\"\")","v":""}]
[null,{"$f":"IFERROR(INDEX(Działanie,SMALL(IF(Cel=$B$2,ROW(Działanie)-MIN(ROW(Działanie))+1),ROWS($B$3:B85)))&\" \"&CHAR(10)&(INDEX(Wynik,SMALL(IF(Cel=$B$2,ROW(Wynik)-MIN(ROW(Wynik))+1),ROWS($B$3:B85))))&CHAR(10),\"\")","v":""},null,{"$f":"IFERROR(INDEX(Działanie,SMALL(IF(Cel=$D$2,ROW(Działanie)-MIN(ROW(Działanie))+1),ROWS($B$3:B85)))&CHAR(10),\"\")","v":""},null,{"$f":"IFERROR(INDEX(Działanie,SMALL(IF(Cel=$F$2,ROW(Działanie)-MIN(ROW(Działanie))+1),ROWS($B$3:B85)))&CHAR(10),\"\")","v":""},null,{"$f":"IFERROR(INDEX(Działanie,SMALL(IF(Cel=$H$2,ROW(Działanie)-MIN(ROW(Działanie))+1),ROWS($B$3:B85)))&CHAR(10),\"\")","v":""}]
[null,{"$f":"IFERROR(INDEX(Działanie,SMALL(IF(Cel=$B$2,ROW(Działanie)-MIN(ROW(Działanie))+1),ROWS($B$3:B86)))&\" \"&CHAR(10)&(INDEX(Wynik,SMALL(IF(Cel=$B$2,ROW(Wynik)-MIN(ROW(Wynik))+1),ROWS($B$3:B86))))&CHAR(10),\"\")","v":""},null,{"$f":"IFERROR(INDEX(Działanie,SMALL(IF(Cel=$D$2,ROW(Działanie)-MIN(ROW(Działanie))+1),ROWS($B$3:B86)))&CHAR(10),\"\")","v":""},null,{"$f":"IFERROR(INDEX(Działanie,SMALL(IF(Cel=$F$2,ROW(Działanie)-MIN(ROW(Działanie))+1),ROWS($B$3:B86)))&CHAR(10),\"\")","v":""},null,{"$f":"IFERROR(INDEX(Działanie,SMALL(IF(Cel=$H$2,ROW(Działanie)-MIN(ROW(Działanie))+1),ROWS($B$3:B86)))&CHAR(10),\"\")","v":""}]
[null,{"$f":"IFERROR(INDEX(Działanie,SMALL(IF(Cel=$B$2,ROW(Działanie)-MIN(ROW(Działanie))+1),ROWS($B$3:B87)))&\" \"&CHAR(10)&(INDEX(Wynik,SMALL(IF(Cel=$B$2,ROW(Wynik)-MIN(ROW(Wynik))+1),ROWS($B$3:B87))))&CHAR(10),\"\")","v":""},null,{"$f":"IFERROR(INDEX(Działanie,SMALL(IF(Cel=$D$2,ROW(Działanie)-MIN(ROW(Działanie))+1),ROWS($B$3:B87)))&CHAR(10),\"\")","v":""},null,{"$f":"IFERROR(INDEX(Działanie,SMALL(IF(Cel=$F$2,ROW(Działanie)-MIN(ROW(Działanie))+1),ROWS($B$3:B87)))&CHAR(10),\"\")","v":""},null,{"$f":"IFERROR(INDEX(Działanie,SMALL(IF(Cel=$H$2,ROW(Działanie)-MIN(ROW(Działanie))+1),ROWS($B$3:B87)))&CHAR(10),\"\")","v":""}]
[null,{"$f":"IFERROR(INDEX(Działanie,SMALL(IF(Cel=$B$2,ROW(Działanie)-MIN(ROW(Działanie))+1),ROWS($B$3:B88)))&\" \"&CHAR(10)&(INDEX(Wynik,SMALL(IF(Cel=$B$2,ROW(Wynik)-MIN(ROW(Wynik))+1),ROWS($B$3:B88))))&CHAR(10),\"\")","v":""},null,{"$f":"IFERROR(INDEX(Działanie,SMALL(IF(Cel=$D$2,ROW(Działanie)-MIN(ROW(Działanie))+1),ROWS($B$3:B88)))&CHAR(10),\"\")","v":""},null,{"$f":"IFERROR(INDEX(Działanie,SMALL(IF(Cel=$F$2,ROW(Działanie)-MIN(ROW(Działanie))+1),ROWS($B$3:B88)))&CHAR(10),\"\")","v":""},null,{"$f":"IFERROR(INDEX(Działanie,SMALL(IF(Cel=$H$2,ROW(Działanie)-MIN(ROW(Działanie))+1),ROWS($B$3:B88)))&CHAR(10),\"\")","v":""}]
[null,{"$f":"IFERROR(INDEX(Działanie,SMALL(IF(Cel=$B$2,ROW(Działanie)-MIN(ROW(Działanie))+1),ROWS($B$3:B89)))&\" \"&CHAR(10)&(INDEX(Wynik,SMALL(IF(Cel=$B$2,ROW(Wynik)-MIN(ROW(Wynik))+1),ROWS($B$3:B89))))&CHAR(10),\"\")","v":""},null,{"$f":"IFERROR(INDEX(Działanie,SMALL(IF(Cel=$D$2,ROW(Działanie)-MIN(ROW(Działanie))+1),ROWS($B$3:B89)))&CHAR(10),\"\")","v":""},null,{"$f":"IFERROR(INDEX(Działanie,SMALL(IF(Cel=$F$2,ROW(Działanie)-MIN(ROW(Działanie))+1),ROWS($B$3:B89)))&CHAR(10),\"\")","v":""},null,{"$f":"IFERROR(INDEX(Działanie,SMALL(IF(Cel=$H$2,ROW(Działanie)-MIN(ROW(Działanie))+1),ROWS($B$3:B89)))&CHAR(10),\"\")","v":""}]
[null,{"$f":"IFERROR(INDEX(Działanie,SMALL(IF(Cel=$B$2,ROW(Działanie)-MIN(ROW(Działanie))+1),ROWS($B$3:B90)))&\" \"&CHAR(10)&(INDEX(Wynik,SMALL(IF(Cel=$B$2,ROW(Wynik)-MIN(ROW(Wynik))+1),ROWS($B$3:B90))))&CHAR(10),\"\")","v":""},null,{"$f":"IFERROR(INDEX(Działanie,SMALL(IF(Cel=$D$2,ROW(Działanie)-MIN(ROW(Działanie))+1),ROWS($B$3:B90)))&CHAR(10),\"\")","v":""},null,{"$f":"IFERROR(INDEX(Działanie,SMALL(IF(Cel=$F$2,ROW(Działanie)-MIN(ROW(Działanie))+1),ROWS($B$3:B90)))&CHAR(10),\"\")","v":""},null,{"$f":"IFERROR(INDEX(Działanie,SMALL(IF(Cel=$H$2,ROW(Działanie)-MIN(ROW(Działanie))+1),ROWS($B$3:B90)))&CHAR(10),\"\")","v":""}]
[null,{"$f":"IFERROR(INDEX(Działanie,SMALL(IF(Cel=$B$2,ROW(Działanie)-MIN(ROW(Działanie))+1),ROWS($B$3:B91)))&\" \"&CHAR(10)&(INDEX(Wynik,SMALL(IF(Cel=$B$2,ROW(Wynik)-MIN(ROW(Wynik))+1),ROWS($B$3:B91))))&CHAR(10),\"\")","v":""},null,{"$f":"IFERROR(INDEX(Działanie,SMALL(IF(Cel=$D$2,ROW(Działanie)-MIN(ROW(Działanie))+1),ROWS($B$3:B91)))&CHAR(10),\"\")","v":""},null,{"$f":"IFERROR(INDEX(Działanie,SMALL(IF(Cel=$F$2,ROW(Działanie)-MIN(ROW(Działanie))+1),ROWS($B$3:B91)))&CHAR(10),\"\")","v":""},null,{"$f":"IFERROR(INDEX(Działanie,SMALL(IF(Cel=$H$2,ROW(Działanie)-MIN(ROW(Działanie))+1),ROWS($B$3:B91)))&CHAR(10),\"\")","v":""}]
[null,{"$f":"IFERROR(INDEX(Działanie,SMALL(IF(Cel=$B$2,ROW(Działanie)-MIN(ROW(Działanie))+1),ROWS($B$3:B92)))&\" \"&CHAR(10)&(INDEX(Wynik,SMALL(IF(Cel=$B$2,ROW(Wynik)-MIN(ROW(Wynik))+1),ROWS($B$3:B92))))&CHAR(10),\"\")","v":""},null,{"$f":"IFERROR(INDEX(Działanie,SMALL(IF(Cel=$D$2,ROW(Działanie)-MIN(ROW(Działanie))+1),ROWS($B$3:B92)))&CHAR(10),\"\")","v":""},null,{"$f":"IFERROR(INDEX(Działanie,SMALL(IF(Cel=$F$2,ROW(Działanie)-MIN(ROW(Działanie))+1),ROWS($B$3:B92)))&CHAR(10),\"\")","v":""},null,{"$f":"IFERROR(INDEX(Działanie,SMALL(IF(Cel=$H$2,ROW(Działanie)-MIN(ROW(Działanie))+1),ROWS($B$3:B92)))&CHAR(10),\"\")","v":""}]
[null,{"$f":"IFERROR(INDEX(Działanie,SMALL(IF(Cel=$B$2,ROW(Działanie)-MIN(ROW(Działanie))+1),ROWS($B$3:B93)))&\" \"&CHAR(10)&(INDEX(Wynik,SMALL(IF(Cel=$B$2,ROW(Wynik)-MIN(ROW(Wynik))+1),ROWS($B$3:B93))))&CHAR(10),\"\")","v":""},null,{"$f":"IFERROR(INDEX(Działanie,SMALL(IF(Cel=$D$2,ROW(Działanie)-MIN(ROW(Działanie))+1),ROWS($B$3:B93)))&CHAR(10),\"\")","v":""},null,{"$f":"IFERROR(INDEX(Działanie,SMALL(IF(Cel=$F$2,ROW(Działanie)-MIN(ROW(Działanie))+1),ROWS($B$3:B93)))&CHAR(10),\"\")","v":""},null,{"$f":"IFERROR(INDEX(Działanie,SMALL(IF(Cel=$H$2,ROW(Działanie)-MIN(ROW(Działanie))+1),ROWS($B$3:B93)))&CHAR(10),\"\")","v":""}]
[null,{"$f":"IFERROR(INDEX(Działanie,SMALL(IF(Cel=$B$2,ROW(Działanie)-MIN(ROW(Działanie))+1),ROWS($B$3:B94)))&\" \"&CHAR(10)&(INDEX(Wynik,SMALL(IF(Cel=$B$2,ROW(Wynik)-MIN(ROW(Wynik))+1),ROWS($B$3:B94))))&CHAR(10),\"\")","v":""},null,{"$f":"IFERROR(INDEX(Działanie,SMALL(IF(Cel=$D$2,ROW(Działanie)-MIN(ROW(Działanie))+1),ROWS($B$3:B94)))&CHAR(10),\"\")","v":""},null,{"$f":"IFERROR(INDEX(Działanie,SMALL(IF(Cel=$F$2,ROW(Działanie)-MIN(ROW(Działanie))+1),ROWS($B$3:B94)))&CHAR(10),\"\")","v":""},null,{"$f":"IFERROR(INDEX(Działanie,SMALL(IF(Cel=$H$2,ROW(Działanie)-MIN(ROW(Działanie))+1),ROWS($B$3:B94)))&CHAR(10),\"\")","v":""}]
[null,{"$f":"IFERROR(INDEX(Działanie,SMALL(IF(Cel=$B$2,ROW(Działanie)-MIN(ROW(Działanie))+1),ROWS($B$3:B95)))&\" \"&CHAR(10)&(INDEX(Wynik,SMALL(IF(Cel=$B$2,ROW(Wynik)-MIN(ROW(Wynik))+1),ROWS($B$3:B95))))&CHAR(10),\"\")","v":""},null,{"$f":"IFERROR(INDEX(Działanie,SMALL(IF(Cel=$D$2,ROW(Działanie)-MIN(ROW(Działanie))+1),ROWS($B$3:B95)))&CHAR(10),\"\")","v":""},null,{"$f":"IFERROR(INDEX(Działanie,SMALL(IF(Cel=$F$2,ROW(Działanie)-MIN(ROW(Działanie))+1),ROWS($B$3:B95)))&CHAR(10),\"\")","v":""},null,{"$f":"IFERROR(INDEX(Działanie,SMALL(IF(Cel=$H$2,ROW(Działanie)-MIN(ROW(Działanie))+1),ROWS($B$3:B95)))&CHAR(10),\"\")","v":""}]
[null,{"$f":"IFERROR(INDEX(Działanie,SMALL(IF(Cel=$B$2,ROW(Działanie)-MIN(ROW(Działanie))+1),ROWS($B$3:B96)))&\" \"&CHAR(10)&(INDEX(Wynik,SMALL(IF(Cel=$B$2,ROW(Wynik)-MIN(ROW(Wynik))+1),ROWS($B$3:B96))))&CHAR(10),\"\")","v":""},null,{"$f":"IFERROR(INDEX(Działanie,SMALL(IF(Cel=$D$2,ROW(Działanie)-MIN(ROW(Działanie))+1),ROWS($B$3:B96)))&CHAR(10),\"\")","v":""},null,{"$f":"IFERROR(INDEX(Działanie,SMALL(IF(Cel=$F$2,ROW(Działanie)-MIN(ROW(Działanie))+1),ROWS($B$3:B96)))&CHAR(10),\"\")","v":""},null,{"$f":"IFERROR(INDEX(Działanie,SMALL(IF(Cel=$H$2,ROW(Działanie)-MIN(ROW(Działanie))+1),ROWS($B$3:B96)))&CHAR(10),\"\")","v":""}]
[null,{"$f":"IFERROR(INDEX(Działanie,SMALL(IF(Cel=$B$2,ROW(Działanie)-MIN(ROW(Działanie))+1),ROWS($B$3:B97)))&\" \"&CHAR(10)&(INDEX(Wynik,SMALL(IF(Cel=$B$2,ROW(Wynik)-MIN(ROW(Wynik))+1),ROWS($B$3:B97))))&CHAR(10),\"\")","v":""},null,{"$f":"IFERROR(INDEX(Działanie,SMALL(IF(Cel=$D$2,ROW(Działanie)-MIN(ROW(Działanie))+1),ROWS($B$3:B97)))&CHAR(10),\"\")","v":""},null,{"$f":"IFERROR(INDEX(Działanie,SMALL(IF(Cel=$F$2,ROW(Działanie)-MIN(ROW(Działanie))+1),ROWS($B$3:B97)))&CHAR(10),\"\")","v":""},null,{"$f":"IFERROR(INDEX(Działanie,SMALL(IF(Cel=$H$2,ROW(Działanie)-MIN(ROW(Działanie))+1),ROWS($B$3:B97)))&CHAR(10),\"\")","v":""}]
[null,{"$f":"IFERROR(INDEX(Działanie,SMALL(IF(Cel=$B$2,ROW(Działanie)-MIN(ROW(Działanie))+1),ROWS($B$3:B98)))&\" \"&CHAR(10)&(INDEX(Wynik,SMALL(IF(Cel=$B$2,ROW(Wynik)-MIN(ROW(Wynik))+1),ROWS($B$3:B98))))&CHAR(10),\"\")","v":""},null,{"$f":"IFERROR(INDEX(Działanie,SMALL(IF(Cel=$D$2,ROW(Działanie)-MIN(ROW(Działanie))+1),ROWS($B$3:B98)))&CHAR(10),\"\")","v":""},null,{"$f":"IFERROR(INDEX(Działanie,SMALL(IF(Cel=$F$2,ROW(Działanie)-MIN(ROW(Działanie))+1),ROWS($B$3:B98)))&CHAR(10),\"\")","v":""},null,{"$f":"IFERROR(INDEX(Działanie,SMALL(IF(Cel=$H$2,ROW(Działanie)-MIN(ROW(Działanie))+1),ROWS($B$3:B98)))&CHAR(10),\"\")","v":""}]
[null,{"$f":"IFERROR(INDEX(Działanie,SMALL(IF(Cel=$B$2,ROW(Działanie)-MIN(ROW(Działanie))+1),ROWS($B$3:B99)))&\" \"&CHAR(10)&(INDEX(Wynik,SMALL(IF(Cel=$B$2,ROW(Wynik)-MIN(ROW(Wynik))+1),ROWS($B$3:B99))))&CHAR(10),\"\")","v":""},null,{"$f":"IFERROR(INDEX(Działanie,SMALL(IF(Cel=$D$2,ROW(Działanie)-MIN(ROW(Działanie))+1),ROWS($B$3:B99)))&CHAR(10),\"\")","v":""},null,{"$f":"IFERROR(INDEX(Działanie,SMALL(IF(Cel=$F$2,ROW(Działanie)-MIN(ROW(Działanie))+1),ROWS($B$3:B99)))&CHAR(10),\"\")","v":""},null,{"$f":"IFERROR(INDEX(Działanie,SMALL(IF(Cel=$H$2,ROW(Działanie)-MIN(ROW(Działanie))+1),ROWS($B$3:B99)))&CHAR(10),\"\")","v":""}]
[null,{"$f":"IFERROR(INDEX(Działanie,SMALL(IF(Cel=$B$2,ROW(Działanie)-MIN(ROW(Działanie))+1),ROWS($B$3:B100)))&\" \"&CHAR(10)&(INDEX(Wynik,SMALL(IF(Cel=$B$2,ROW(Wynik)-MIN(ROW(Wynik))+1),ROWS($B$3:B100))))&CHAR(10),\"\")","v":""},null,{"$f":"IFERROR(INDEX(Działanie,SMALL(IF(Cel=$D$2,ROW(Działanie)-MIN(ROW(Działanie))+1),ROWS($B$3:B100)))&CHAR(10),\"\")","v":""},null,{"$f":"IFERROR(INDEX(Działanie,SMALL(IF(Cel=$F$2,ROW(Działanie)-MIN(ROW(Działanie))+1),ROWS($B$3:B100)))&CHAR(10),\"\")","v":""},null,{"$f":"IFERROR(INDEX(Działanie,SMALL(IF(Cel=$H$2,ROW(Działanie)-MIN(ROW(Działanie))+1),ROWS($B$3:B100)))&CHAR(10),\"\")","v":""}]

{"sheet":"Informacje","index":2,"n_rows":6,"n_cols":1,"rows_kept":6}
["Informacje na temat tego skoroszytu"]
["Przewodnik dotyczący czytników zawartości ekranu"]
["W tym skoroszycie znajdują się 3 arkusze. \n\nDane planu\nElastyczny plan\nInformacje\n\nInstrukcje dotyczące każdego arkusza znajdują się w kolumnie A (zaczynają się od komórki A1). Ich tekst jest ukryty. Każdy krok prowadzi Cię przez informacje w danym wierszu. Kolejne kroki podane są w komórkach A2, A3 i tak dalej, chyba że wyraźnie stwierdzono inaczej. Na przykład tekst instrukcji może brzmieć „aby wykonać następny krok, przejdź do komórki A6”. \n\nTekst ukryty nie zostanie wydrukowany.\n\nAby usunąć te instrukcje z dowolnego arkusza, po prostu usuń kolumnę A.\n"]
["Informacje na temat tego skoroszytu"]
["Wprowadź informacje na temat punktów kontrolnych w arkuszu Dane planu. Pamiętaj o posortowaniu danych według priorytetów, a następnie według punktów kontrolnych, aby uzyskać widok ukończone, bieżące, krótkoterminowe i odległe z malejącymi priorytetami — elementy z najwyższymi priorytetami będą się znajdować u góry. Plan w arkuszu Elastyczny plan jest aktualizowany automatycznie.\n"]
["Jest to ostatnia instrukcja w tym arkuszu."]